Workbook

Sheet Explanation
A1: Appendix 3. Hydrostratigraphic Units and Subsurface Hydrologic Unit Types for Wells and Underground Nuclear Test Holes in Yucca Flat, as Projected From Hydrostratigraphic Framework Models.
A3: This workbook is appendix 3 in "Fenelon, J.M., Sweetkind, D.S., Elliott, P.E., and Laczniak, R.J., 2012, Conceptualization of the predevelopment groundwater flow system and transient water-level responses in Yucca Flat, Nevada National Security Site, Nevada: U.S. Geological Survey Scientific Investigations Report 2012-5196, 61 p." The appendix contains well logs for wells in Yucca Flat that had water levels used for water-level contouring. There are five worksheets in this Excel workbook, in addition to this "Explanation" worksheet. The primary worksheet is "GeoCOLUMN", which contains an interface that allows the user to select a well and obtain the hydrostratigraphic units (HSUs) encountered at the well site. "SHUTtoHSU_Chart" is a worksheet containing descriptions of all the HSUs used in this workbook and their relation to corresponding subsurface hydrologic unit types (SHUTs). "HSU" and "ConsWL" contain HSU, well-construction, and water-level data that are used by "GeoCOLUMN". The "CONTROL" tab provides information to the Excel macros to allow them to generate the well logs on the "GeoCOLUMN" worksheet.
A5: HSU data for each well in this appendix were derived from hydrostratigraphic framework models for Yucca Flat-Climax Mine (YFCM) and Rainier Mesa-Shoshone Mountain (RMSM). These models are documented in Bechtel Nevada (2006) and National Security Technologies, LLC (2007a), respectively. Each well in the appendix was projected down from land surface to the bottom of the model. This produced an interpretation of the geology at the well site. The predicted HSUs, at the depth range penetrated by an actual well, generally are similar to descriptions on the original lithologic log. At depths below the bottom of the well, the predicted HSUs are less certain and are based solely on the hydrostratigraphic framework documented by the model.
A7: Column headings and instructions for viewing worksheet "GeoCOLUMN"
A8: Well Name: USGS well name or nuclear test hole name. Use pull-down feature to select well or test hole to be displayed.
A9: Maximum altitude: Maximum altitude shown on well-log plot. This value can be changed to the user's preference by typing in a different value. Altitude referenced to feet above National Geodetic Vertical Datum of 1929 (NGVD 29).
A10: Minimum altitude: Minimum altitude shown on well-log plot. This value can be changed to the user's preference by typing in a different value. Altitude referenced to feet above NGVD 29.
A11: Units: Displays the units of altitude used on the well-log plot. Click on the cell to toggle between different units.
A12: HSU name: Name of HSU encountered at well site, as projected from framework model. Descriptions of HSUs are provided in the worksheet "SHUTtoHSU_Chart".
A13: HSU top altitude, ft: The altitude of the top of the HSU that is labeled in column to the left. Altitude referenced to feet above NGVD 29.
A14: Altitude, ft: Altitudes of (1) land surface (LSD) at the well site; (2) water level in the well (Water Lev); (3) top of the uppermost well opening (Open Top); and (4) bottom of the lowermost opening (Open Bot). Altitudes referenced to feet above NGVD 29. Note: The altitude of land surface at a well site may vary slightly (generally less than 10 ft) between that interpreted from the hydrostratigraphic framework model (see the first “HSU Top Altitude”) and the documented land-surface altitude (LSD). These differences are attributed to small errors associated with the interpolation method used to estimate land surface in the hydrostratigraphic framework model.
A15: Map Note: On the index map of Yucca Flat, underground nuclear tests are shown as black dots, wells are shown as small blue circles, and the selected well or shot is shown as a large yellow circle.
A16: The features on the well-log plot in "GeoCOLUMN" are as follows: The well-log plot is shown on the left side of the "GeoCOLUMN" worksheet. The colors on the well log correspond to the HSUs described to the upper right of the plot and the SHUTs described to the lower right of the plot. If all the HSUs listed to the right of the plot do not show up on the well-log plot, then change the "Minimum altitude" and/or "Maximum altitude" on the upper part of the worksheet to a lower and/or higher value, respectively. Then click the "Refresh" button. On the left side of the well log is a vertical line with upper and lower blue tick marks, indicating the altitude of land surface and the bottom of the hole, respectively. On the right side of the well log is another vertical line with upper and lower blue tick marks, indicating the altitude of top of uppermost well opening and bottom of lowermost well opening. A thin horizontal line across the well log with an inverted triangle on it represents the mean predevelopment water level in the well: If the triangle has an arrow pointing up, then the water level is considered to be "greater than or equal to" the value indicated; If the triangle has an arrow pointing down, then the water level is considered to be "less than or equal to" the value indicated; If the triangle has arrows pointing up and down, then the water level is considered to be bounded between two values given in the column "WLAtlAveFt" in the worksheet "ConsWL" and, If the triangle has an "e" above it, then the water level was not measured and is an estimate that approximates (+/- 50 ft) the predevelopment water level.
A17: Batch plot feature A macro is available to batch process GIF files of the hydrostratigraphic column (SHUT depth profile) for all wells in the spreadsheet. The macro is initiated by entering ALT-F8 or using the Excel tools pull down menu and selecting the "Macro" option and running the "BurpGIFS" macro. A set of GIF files, identified by well name, is created in the parent directory.
A19: Column headings for worksheet "HSU"
A20: Site ID: Unique, 15-digit, U.S. Geological Survey site identification number.
A21: WellID: U.S. Geological Survey well name or nuclear test hole name.
A22: HSUTopAltM: Altitude of the top of the reference hydrostratigraphic unit, in meters. Altitude referenced to feet above NGVD 29.
A23: HSU: Reference hydrostratigraphic unit.
A24: HSUBotAltM: Altitude of the bottom of the reference hydrostratigraphic unit, in meters. Altitude referenced to feet above NGVD 29.
A25: HSUThickM: Thickness of the reference hydrostratigraphic unit, in meters.
A26: HSUDescription: Name of hydrostratigraphic framework model or reference source from which data were derived: LOG, Geologic log; YFCM, Yucca Flat-Climax Mine model; YFCM table A-1, electronic version (last updated in 2009) of table A-1 from Bechtel Nevada (2006); RMSM, Rainier Mesa-Shoshone Mountain HFM model; RMSM table A-3, electronic version (last updated in 2009) of table A-3 from National Security Technologies, LLC (2007a). Elevations of the HSU top and bottom reported in tables A-1 and A-3 were adjusted to land-surface altitudes as stored in the U.S. Geological Survey's National Water Information System (NWIS), which can be accessed on the World Wide Web at http://waterdata.usgs.gov/nv/nwis.
A28: Column headings for worksheet "ConsWL"
A29: Site ID: Unique, 15-digit, U.S. Geological Survey site identification number.
A30: WellID: U.S. Geological Survey well name or nuclear test hole name.
A31: Lat83: Latitude of the well or hole, in decimal degrees; referenced to North American Datum of 1983 (NAD83).
A32: Long83: Longitude of the well or hole, in decimal degrees; referenced to North American Datum of 1983 (NAD83).
A33: LSAltFt: Altitude of land surface at the well or hole, in feet. Altitude referenced to feet above NGVD 29.
A34: HoleBotAltFt: Altitude of bottom of hole, in feet. Altitude referenced to feet above NGVD 29. If HoleBotAltFt is equal to LSAltFt, HoleBotAltFt is unknown.
A35: WLAltAveFt: Altitude of predevelopment water level or average of predevelopment water levels measured in well, in feet. Includes qualifier. Altitude referenced to feet above NGVD 29. Note: the water-level altitude provided here has not been temperature corrected, and therefore, may not agree with the hydraulic-head value plotted on plates 3-4.
A36: Qualifier: Qualifier that indicates whether the predevelopment water-level altitude should be used only as an upper or lower bound (lt, less than; le, less than or equal; gt, greater than; ge, greater than or equal) or qualifier that indicates that the predevelopment water-level altitude is an estimate, est.
A37: WLaltAveFtNoQ: Same as WLAltAveFt but without qualifier.
A38: OpenTopFt: Altitude of top of uppermost opening, in feet. Altitude referenced to feet above NGVD 29.
A39: OpenBotFt: Altitude of bottom of lowermost opening, in feet. Altitude referenced to feet above NGVD 29. If OpenBotFt is equal to WLaltAveFtNoQ, OpenBotFt is unknown.
A40: DetNAMENV209: Name of nuclear test detonation, as reported in U.S. Department of Energy, 2000b.
A41: DBFt: Depth of burial, in feet, for nuclear device. For holes where no nuclear device was tested, a value of 9999 is assigned.
A42: DBAltFt: Altitude of burial, in feet, for nuclear device. For holes where no nuclear device was tested, no value is assigned. Altitude referenced to feet above NGVD 29.
A43: Yld: Yield, in kilotons, of nuclear test, as reported in U.S. Department of Energy, 2000b.
A44: Bechtel Nevada, 2006, A hydrostratigraphic model and alternatives for the groundwater flow and contaminant transport model of Corrective Action Unit 97—Yucca Flat–Climax Mine, Lincoln and Nye Counties, Nevada: U.S. Department of Energy Report DOE/NV/11718–1119, 288 p.
A45: National Security Technologies, LLC, 2007a, A hydrostratigraphic model and alternatives for the groundwater flow and contaminant transport model of Corrective Action Unit 99—Rainier Mesa–Shoshone Mountain, Nye County, Nevada: U.S. Department of Energy Report DOE/NV/25946—146, 302 p.
A46: U.S. Department of Energy, 2000b, United States nuclear tests, July 1945 through September 1992: U.S. Department of Energy Report DOE/NV—209 REV 15, 162 p.

Sheet GeoCOLUMN
A1: UPPERcorner | F1: Well Name: | G1: ER- 2-1 main (shallow)
F3: Maximum Altitude: | G3: 6000
F4: Minimum Altitude: | G4: -5000
F5: Units: | G5: ft
F7: HSU Name | G7: ="HSU top altitude"&", "&depthUNIT -> HSU top altitude, ft | H7: =(CONTROL!I3&", "&depthUNIT) -> Altitude, ft
F8: AA3 | G8: =depCONV*CONTROL!I4 -> 4215.911265 | H8: LSD: | J8: =CONTROL!M7 -> 4215.86
F9: TMUVTA | G9: =depCONV*CONTROL!I5 -> 2817.913386 | H9: Water Lev: | I9: =CONTROL!L15 ->  | J9: =CONTROL!M13 -> 2491
F10: TMWTA | G10: =depCONV*CONTROL!I6 -> 2617.782152 | H10: Open Top: | J10: =CONTROL!M10 -> 2574
F11: TMLVTA | G11: =depCONV*CONTROL!I7 -> 2472.769029 | H11: Open Bot: | J11: =CONTROL!M11 -> 2039
F12: LTCU | G12: =depCONV*CONTROL!I8 -> 2297.900262
F13: OSBCU | G13: =depCONV*CONTROL!I9 -> 1559.379113
F14: ATCU | G14: =depCONV*CONTROL!I10 -> 1122.597617
F15: LCA | G15: =depCONV*CONTROL!I11 -> 1091.016252
F16: LCCU | G16: =depCONV*CONTROL!I12 -> -6687.50737
F17: No Data | G17: =depCONV*CONTROL!I13 -> -16404.19948
H24: Subsurface hydrologic unit type color code (SHUT)
J26: Alluvial aquifer
J27: Volcanic aquifer
J28: Volcanic confining unit
J29: Siliceous confining unit
J30: Siliceous confining unit
J31: Siliceous confining unit
J32: Carbonate aquifer (local)
J33: Carbonate aquifer (local)
E34: LOWERcorner | J34: Carbonate aquifer (regional)

Sheet SHUTtoHSU_Chart
A1: Subsurface hydrologic unit types and hydrostratigraphic units in the Yucca Flat area, Nevada.
A3: Subsurface hydrologic unit type description | B3: Subsurface hydrologic unit type | D3: Hydrostrati-graphic unit1 | E3: Applicable HFM models | F3: Description of hydrostratigraphic unit1 | G3: Primary lithology of hydrostratigraphic unit1
A4: Alluvial aquifer | B4: AAQ | D4: AA | E4: RMSM | F4: Alluvial aquifer | G4: Alluvium: gravelly sand, colluvium, and moat-filling sediments near Timber Mountain
A5: Alluvial aquifer | B5: AAQ | D5: AA3 | E5: YF | F5: Alluvial aquifer 3 | G5: Alluvium: gravelly sand, colluvium. Also includes eolian sands and thin air-fall tuffs.
A6: Alluvial confining unit | B6: ACU | D6: PCUT | E6: YF | F6: Playa confining unit | G6: Clayey silt and sandy silt.
A7: Alluvial aquifer | B7: AAQ | D7: AA2 | E7: YF | F7: Alluvial aquifer 2 | G7: Alluvium: gravelly sand, colluvium. Also includes eolian sands and thin air-fall tuffs.
A8: Alluvial aquifer | B8: AAQ | D8: BLFA | E8: YF | F8: Basalt lava flow aquifer | G8: Basalt lava.
A9: Alluvial aquifer | B9: AAQ | D9: AA1 | E9: YF | F9: Alluvial aquifer 1 | G9: Alluvium: gravelly sand, colluvium. Also includes eolian sands and thin air-fall tuffs.
A10: Volcanic aquifer | B10: VAQ | D10: TMUVTA | E10: RMSM, YF | F10: Timber Mountain upper vitric-tuff aquifer | G10: Vitric, nonwelded to partially welded, ash-flow and bedded tuffs
A11: Volcanic aquifer | B11: VAQ | D11: TMWTA | E11: RMSM, YF | F11: Timber Mountain welded-tuff aquifer | G11: Vitric to devitrified, partially to densely welded ash-flow tuff
A12: Volcanic aquifer | B12: VAQ | D12: TMLVTA | E12: RMSM, YF | F12: Timber Mountain lower vitric-tuff aquifer | G12: Vitric, nonwelded ash-flow and bedded tuffs
A13: Volcanic confining unit | B13: VCU | D13: UTCU | E13: YF | F13: Upper tuff confining unit | G13: Zeolitized, bedded tuff
A14: Volcanic aquifer | B14: VAQ | D14: TSA | E14: RMSM, YF | F14: Topopah Spring aquifer | G14: Welded ash-flow tuff
A15: Volcanic aquifer | B15: VAQ | D15: LVTA | E15: RMSM, YF | F15: Lower vitric-tuff aquifer | G15: Vitric, nonwelded and bedded tuffs
A16: Volcanic aquifer | B16: VAQ | D16: BRA | E16: YF | F16: Belted Range aquifer | G16: Lava flow and welded ash-flow tuff
A17: Volcanic confining unit | B17: VCU | D17: BRCU | E17: YF | F17: Belted Range confining unit | G17: Zeolitized, bedded tuff
A18: Volcanic confining unit | B18: VCU | D18: LTCU | E18: RMSM, YF | F18: Lower tuff confining unit | G18: Zeolitized, bedded tuff with lesser interbedded zeolitized, nonwelded to partially welded tuffs.
A19: Volcanic aquifer | B19: VAQ | D19: TUBA | E19: YF | F19: Tub Spring aquifer | G19: Welded ash-flow tuff
A20: Volcanic aquifer | B20: VAQ | D20: PRETBG_1 | E20: YF | F20: Pre-Grouse Canyon tuff lava flow aquifer 1 | G20: Lava flow.
A21: Volcanic confining unit | B21: VCU | D21: OSBCU | E21: YF | F21: Oak Spring Butte confining unit | G21: Devitrified to zeolitized, nonwelded to partially welded, ash-flow tuffs and bedded tuffs
A22: Volcanic aquifer | B22: VAQ | D22: RVA | E22: RMSM | F22: Redrock Valley welded-tuff aquifer | G22: Devitrified, welded ash-flow tuff
A23: Volcanic confining unit | B23: VCU | D23: LTCU1 | E23: RMSM | F23: Lower tuff confining unit 1 | G23: Zeolitized, bedded tuff with minor interbedded zeolitized, welded tuffs.
A24: Volcanic confining unit | B24: VCU | D24: ATCU | E24: RMSM, YF | F24: Argillic tuff confining unit | G24: Argillic, bedded tuffs and minor paleocolluvium
A25: Siliceous confining unit | B25: SCU | D25: MGCU | E25: RMSM, YF | F25: Mesozoic granite confining unit | G25: Granodiorite and quartz monzonite
A26: Carbonate aquifer | B26: CAQ | D26: UCA | E26: RMSM, YF | F26: Upper carbonate aquifer | G26: Limestone
A27: Siliceous confining unit | B27: SCU | D27: UCCU1 | E27: RMSM | F27: Upper clastic confining unit 1 | G27: Argillite and quartzite
A28: Siliceous confining unit | B28: SCU | D28: UCCU | E28: RMSM, YF | F28: Upper clastic confining unit | G28: Argillite and quartzite
A29: Carbonate aquifer | B29: CAQ | D29: LCA3 | E29: RMSM, YF | F29: Lower carbonate aquifer thrust plate | G29: Limestone and dolomite
A30: Siliceous confining unit | B30: SCU | D30: LCCU2 | E30: YF | F30: Lower clastic confining unit thrust plate 2 | G30: Quartzite and siltstone.
A31: Carbonate aquifer | B31: CAQ | D31: LCA | E31: RMSM, YF | F31: Lower carbonate aquifer | G31: Dolomite and limestone
A32: Siliceous confining unit | B32: SCU | D32: LCCU | E32: RMSM, YF | F32: Lower clastic confining unit | G32: Quartzite and siltstone
A33: 1Hydrostratigraphic units and descriptions from:
A34: Bechtel Nevada, 2006, A hydrostratigraphic model and alternatives for the groundwater flow and contaminant transport model of Corrective Action Unit 97--Yucca Flat-Climax Mine, Lincoln and Nye Counties, Nevada: U.S. Department of Energy Report DOE/NV/11718--1119, 288 p.
A35: National Security Technologies, LLC, 2007a, A hydrostratigraphic model and alternatives for the groundwater flow and contaminant transport model of Corrective Action Unit 99—Rainier Mesa–Shoshone Mountain, Nye County, Nevada: U.S. Department of Energy Report DOE/NV/25946—146, 302 p.
E37: red font = present in model but unsaturated

Sheet HSU
A1: SiteID | B1: WellID | C1: HSUTopAltM | D1: HSU | E1: HSUBotAltM | F1: HSUThickM | G1: HSUDescription
A2: 370725116033901 | B2: ER- 2-1 main (shallow) | C2: 1285.009754 | D2: AA3 | E2: 858.9 | F2: 426.1097537 | G2: YFCM
A3: 370725116033901 | B3: ER- 2-1 main (shallow) | C3: 858.9 | D3: TMUVTA | E3: 797.9 | F3: 61 | G3: YFCM table A-1
A4: 370725116033901 | B4: ER- 2-1 main (shallow) | C4: 797.9 | D4: TMWTA | E4: 753.7 | F4: 44.2 | G4: YFCM table A-1
A5: 370725116033901 | B5: ER- 2-1 main (shallow) | C5: 753.7 | D5: TMLVTA | E5: 700.4 | F5: 53.3 | G5: YFCM table A-1
A6: 370725116033901 | B6: ER- 2-1 main (shallow) | C6: 700.4 | D6: LTCU | E6: 475.2987537 | F6: 225.1012463 | G6: YFCM table A-1
A7: 370725116033901 | B7: ER- 2-1 main (shallow) | C7: 475.2987537 | D7: OSBCU | E7: 342.1677537 | F7: 133.131 | G7: YFCM
A8: 370725116033901 | B8: ER- 2-1 main (shallow) | C8: 342.1677537 | D8: ATCU | E8: 332.5417537 | F8: 9.626 | G8: YFCM
A9: 370725116033901 | B9: ER- 2-1 main (shallow) | C9: 332.5417537 | D9: LCA | E9: -2038.352246 | F9: 2370.894 | G9: YFCM
A10: 370725116033901 | B10: ER- 2-1 main (shallow) | C10: -2038.352246 | D10: LCCU | E10: -5000 | F10: 2961.647754 | G10: YFCM
A11: 370725116033901 | B11: ER- 2-1 main (shallow) | C11: -5000 | D11: No Data | G11: YFCM
A12: 370725116033902 | B12: ER- 2-1 piezometer (deep) | C12: 1285.009754 | D12: AA3 | E12: 858.9 | F12: 426.1097537 | G12: YFCM
A13: 370725116033902 | B13: ER- 2-1 piezometer (deep) | C13: 858.9 | D13: TMUVTA | E13: 797.9 | F13: 61 | G13: YFCM table A-1
A14: 370725116033902 | B14: ER- 2-1 piezometer (deep) | C14: 797.9 | D14: TMWTA | E14: 753.7 | F14: 44.2 | G14: YFCM table A-1
A15: 370725116033902 | B15: ER- 2-1 piezometer (deep) | C15: 753.7 | D15: TMLVTA | E15: 700.4 | F15: 53.3 | G15: YFCM table A-1
A16: 370725116033902 | B16: ER- 2-1 piezometer (deep) | C16: 700.4 | D16: LTCU | E16: 475.2987537 | F16: 225.1012463 | G16: YFCM table A-1
A17: 370725116033902 | B17: ER- 2-1 piezometer (deep) | C17: 475.2987537 | D17: OSBCU | E17: 342.1677537 | F17: 133.131 | G17: YFCM
A18: 370725116033902 | B18: ER- 2-1 piezometer (deep) | C18: 342.1677537 | D18: ATCU | E18: 332.5417537 | F18: 9.626 | G18: YFCM
A19: 370725116033902 | B19: ER- 2-1 piezometer (deep) | C19: 332.5417537 | D19: LCA | E19: -2038.352246 | F19: 2370.894 | G19: YFCM
A20: 370725116033902 | B20: ER- 2-1 piezometer (deep) | C20: -2038.352246 | D20: LCCU | E20: -5000 | F20: 2961.647754 | G20: YFCM
A21: 370725116033902 | B21: ER- 2-1 piezometer (deep) | C21: -5000 | D21: No Data | G21: YFCM
A22: 370116115561301 | B22: ER- 3-1-1 (deep) | C22: 1335.144 | D22: AA3 | E22: 1114.614 | F22: 220.53 | G22: YFCM
A23: 370116115561301 | B23: ER- 3-1-1 (deep) | C23: 1114.614 | D23: TMLVTA | E23: 1068.861 | F23: 45.753 | G23: YFCM
A24: 370116115561301 | B24: ER- 3-1-1 (deep) | C24: 1068.861 | D24: AA3 | E24: 1068.148 | F24: 0.713 | G24: YFCM
A25: 370116115561301 | B25: ER- 3-1-1 (deep) | C25: 1068.148 | D25: LCA | E25: -1384.436 | F25: 2452.584 | G25: YFCM
A26: 370116115561301 | B26: ER- 3-1-1 (deep) | C26: -1384.436 | D26: LCCU | E26: -5100 | F26: 3715.564 | G26: YFCM
A27: 370116115561301 | B27: ER- 3-1-1 (deep) | C27: -5100 | D27: No Data | G27: YFCM
A28: 370116115561302 | B28: ER- 3-1-2 (shallow) | C28: 1335.144 | D28: AA3 | E28: 1114.614 | F28: 220.53 | G28: YFCM
A29: 370116115561302 | B29: ER- 3-1-2 (shallow) | C29: 1114.614 | D29: TMLVTA | E29: 1068.861 | F29: 45.753 | G29: YFCM
A30: 370116115561302 | B30: ER- 3-1-2 (shallow) | C30: 1068.861 | D30: AA3 | E30: 1068.148 | F30: 0.713 | G30: YFCM
A31: 370116115561302 | B31: ER- 3-1-2 (shallow) | C31: 1068.148 | D31: LCA | E31: -1384.436 | F31: 2452.584 | G31: YFCM
A32: 370116115561302 | B32: ER- 3-1-2 (shallow) | C32: -1384.436 | D32: LCCU | E32: -5100 | F32: 3715.564 | G32: YFCM
A33: 370116115561302 | B33: ER- 3-1-2 (shallow) | C33: -5100 | D33: No Data | G33: YFCM
A34: 370214116021001 | B34: ER- 3-2-1 (deep) | C34: 1222.290295 | D34: AA3 | E34: 420.4 | F34: 801.890295 | G34: YFCM
A35: 370214116021001 | B35: ER- 3-2-1 (deep) | C35: 420.4 | D35: TMUVTA | E35: 370.4 | F35: 50 | G35: YFCM table A-1
A36: 370214116021001 | B36: ER- 3-2-1 (deep) | C36: 370.4 | D36: TMWTA | E36: 296.926295 | F36: 73.47370495 | G36: YFCM table A-1
A37: 370214116021001 | B37: ER- 3-2-1 (deep) | C37: 296.926295 | D37: TMLVTA | E37: 271.409295 | F37: 25.517 | G37: YFCM
A38: 370214116021001 | B38: ER- 3-2-1 (deep) | C38: 271.409295 | D38: LTCU | E38: 117.394295 | F38: 154.015 | G38: YFCM
A39: 370214116021001 | B39: ER- 3-2-1 (deep) | C39: 117.394295 | D39: OSBCU | E39: -76.09170495 | F39: 193.486 | G39: YFCM
A40: 370214116021001 | B40: ER- 3-2-1 (deep) | C40: -76.09170495 | D40: ATCU | E40: -139.547705 | F40: 63.456 | G40: YFCM
A41: 370214116021001 | B41: ER- 3-2-1 (deep) | C41: -139.547705 | D41: LCA | E41: -3310.705705 | F41: 3171.158 | G41: YFCM
A42: 370214116021001 | B42: ER- 3-2-1 (deep) | C42: -3310.705705 | D42: LCCU | E42: -5000 | F42: 1689.294295 | G42: YFCM
A43: 370214116021001 | B43: ER- 3-2-1 (deep) | C43: -5000 | D43: No Data | G43: YFCM
A44: 370214116021002 | B44: ER- 3-2-2 (middle) | C44: 1222.290295 | D44: AA3 | E44: 420.4 | F44: 801.890295 | G44: YFCM
A45: 370214116021002 | B45: ER- 3-2-2 (middle) | C45: 420.4 | D45: TMUVTA | E45: 370.4 | F45: 50 | G45: YFCM table A-1
A46: 370214116021002 | B46: ER- 3-2-2 (middle) | C46: 370.4 | D46: TMWTA | E46: 296.926295 | F46: 73.47370495 | G46: YFCM table A-1
A47: 370214116021002 | B47: ER- 3-2-2 (middle) | C47: 296.926295 | D47: TMLVTA | E47: 271.409295 | F47: 25.517 | G47: YFCM
A48: 370214116021002 | B48: ER- 3-2-2 (middle) | C48: 271.409295 | D48: LTCU | E48: 117.394295 | F48: 154.015 | G48: YFCM
A49: 370214116021002 | B49: ER- 3-2-2 (middle) | C49: 117.394295 | D49: OSBCU | E49: -76.09170495 | F49: 193.486 | G49: YFCM
A50: 370214116021002 | B50: ER- 3-2-2 (middle) | C50: -76.09170495 | D50: ATCU | E50: -139.547705 | F50: 63.456 | G50: YFCM
A51: 370214116021002 | B51: ER- 3-2-2 (middle) | C51: -139.547705 | D51: LCA | E51: -3310.705705 | F51: 3171.158 | G51: YFCM
A52: 370214116021002 | B52: ER- 3-2-2 (middle) | C52: -3310.705705 | D52: LCCU | E52: -5000 | F52: 1689.294295 | G52: YFCM
A53: 370214116021002 | B53: ER- 3-2-2 (middle) | C53: -5000 | D53: No Data | G53: YFCM
A54: 370214116021003 | B54: ER- 3-2-3 (shallow) | C54: 1222.290295 | D54: AA3 | E54: 420.4 | F54: 801.890295 | G54: YFCM
A55: 370214116021003 | B55: ER- 3-2-3 (shallow) | C55: 420.4 | D55: TMUVTA | E55: 370.4 | F55: 50 | G55: YFCM table A-1
A56: 370214116021003 | B56: ER- 3-2-3 (shallow) | C56: 370.4 | D56: TMWTA | E56: 296.926295 | F56: 73.47370495 | G56: YFCM table A-1
A57: 370214116021003 | B57: ER- 3-2-3 (shallow) | C57: 296.926295 | D57: TMLVTA | E57: 271.409295 | F57: 25.517 | G57: YFCM
A58: 370214116021003 | B58: ER- 3-2-3 (shallow) | C58: 271.409295 | D58: LTCU | E58: 117.394295 | F58: 154.015 | G58: YFCM
A59: 370214116021003 | B59: ER- 3-2-3 (shallow) | C59: 117.394295 | D59: OSBCU | E59: -76.09170495 | F59: 193.486 | G59: YFCM
A60: 370214116021003 | B60: ER- 3-2-3 (shallow) | C60: -76.09170495 | D60: ATCU | E60: -139.547705 | F60: 63.456 | G60: YFCM
A61: 370214116021003 | B61: ER- 3-2-3 (shallow) | C61: -139.547705 | D61: LCA | E61: -3310.705705 | F61: 3171.158 | G61: YFCM
A62: 370214116021003 | B62: ER- 3-2-3 (shallow) | C62: -3310.705705 | D62: LCCU | E62: -5000 | F62: 1689.294295 | G62: YFCM
A63: 370214116021003 | B63: ER- 3-2-3 (shallow) | C63: -5000 | D63: No Data | G63: YFCM
A64: 365904115593404 | B64: ER- 6-1 main (2129 ft) | C64: 1200.088393 | D64: AA3 | E64: 1100.1 | F64: 99.98839307 | G64: YFCM
A65: 365904115593404 | B65: ER- 6-1 main (2129 ft) | C65: 1100.1 | D65: TMLVTA | E65: 1048.9 | F65: 51.2 | G65: YFCM table A-1
A66: 365904115593404 | B66: ER- 6-1 main (2129 ft) | C66: 1048.9 | D66: UTCU | E66: 1035.5 | F66: 13.4 | G66: YFCM table A-1
A67: 365904115593404 | B67: ER- 6-1 main (2129 ft) | C67: 1035.5 | D67: TSA | E67: 959.9 | F67: 75.6 | G67: YFCM table A-1
A68: 365904115593404 | B68: ER- 6-1 main (2129 ft) | C68: 959.9 | D68: LTCU | E68: 767.9 | F68: 192 | G68: YFCM table A-1
A69: 365904115593404 | B69: ER- 6-1 main (2129 ft) | C69: 767.9 | D69: OSBCU | E69: 673.4 | F69: 94.5 | G69: YFCM table A-1
A70: 365904115593404 | B70: ER- 6-1 main (2129 ft) | C70: 673.4 | D70: ATCU | E70: 662.1 | F70: 11.3 | G70: YFCM table A-1
A71: 365904115593404 | B71: ER- 6-1 main (2129 ft) | C71: 662.1 | D71: LCA | E71: -3220.227607 | F71: 3882.327607 | G71: YFCM table A-1
A72: 365904115593404 | B72: ER- 6-1 main (2129 ft) | C72: -3220.227607 | D72: LCCU | E72: -5000 | F72: 1779.772393 | G72: YFCM
A73: 365904115593404 | B73: ER- 6-1 main (2129 ft) | C73: -5000 | D73: No Data | G73: YFCM
A74: 365904115593405 | B74: ER- 6-1 main (2243 ft) | C74: 1200.088393 | D74: AA3 | E74: 1100.1 | F74: 99.98839307 | G74: YFCM
A75: 365904115593405 | B75: ER- 6-1 main (2243 ft) | C75: 1100.1 | D75: TMLVTA | E75: 1048.9 | F75: 51.2 | G75: YFCM table A-1
A76: 365904115593405 | B76: ER- 6-1 main (2243 ft) | C76: 1048.9 | D76: UTCU | E76: 1035.5 | F76: 13.4 | G76: YFCM table A-1
A77: 365904115593405 | B77: ER- 6-1 main (2243 ft) | C77: 1035.5 | D77: TSA | E77: 959.9 | F77: 75.6 | G77: YFCM table A-1
A78: 365904115593405 | B78: ER- 6-1 main (2243 ft) | C78: 959.9 | D78: LTCU | E78: 767.9 | F78: 192 | G78: YFCM table A-1
A79: 365904115593405 | B79: ER- 6-1 main (2243 ft) | C79: 767.9 | D79: OSBCU | E79: 673.4 | F79: 94.5 | G79: YFCM table A-1
A80: 365904115593405 | B80: ER- 6-1 main (2243 ft) | C80: 673.4 | D80: ATCU | E80: 662.1 | F80: 11.3 | G80: YFCM table A-1
A81: 365904115593405 | B81: ER- 6-1 main (2243 ft) | C81: 662.1 | D81: LCA | E81: -3220.227607 | F81: 3882.327607 | G81: YFCM table A-1
A82: 365904115593405 | B82: ER- 6-1 main (2243 ft) | C82: -3220.227607 | D82: LCCU | E82: -5000 | F82: 1779.772393 | G82: YFCM
A83: 365904115593405 | B83: ER- 6-1 main (2243 ft) | C83: -5000 | D83: No Data | G83: YFCM
A84: 365904115593401 | B84: ER- 6-1 main (3206 ft) | C84: 1200.088393 | D84: AA3 | E84: 1100.1 | F84: 99.98839307 | G84: YFCM
A85: 365904115593401 | B85: ER- 6-1 main (3206 ft) | C85: 1100.1 | D85: TMLVTA | E85: 1048.9 | F85: 51.2 | G85: YFCM table A-1
A86: 365904115593401 | B86: ER- 6-1 main (3206 ft) | C86: 1048.9 | D86: UTCU | E86: 1035.5 | F86: 13.4 | G86: YFCM table A-1
A87: 365904115593401 | B87: ER- 6-1 main (3206 ft) | C87: 1035.5 | D87: TSA | E87: 959.9 | F87: 75.6 | G87: YFCM table A-1
A88: 365904115593401 | B88: ER- 6-1 main (3206 ft) | C88: 959.9 | D88: LTCU | E88: 767.9 | F88: 192 | G88: YFCM table A-1
A89: 365904115593401 | B89: ER- 6-1 main (3206 ft) | C89: 767.9 | D89: OSBCU | E89: 673.4 | F89: 94.5 | G89: YFCM table A-1
A90: 365904115593401 | B90: ER- 6-1 main (3206 ft) | C90: 673.4 | D90: ATCU | E90: 662.1 | F90: 11.3 | G90: YFCM table A-1
A91: 365904115593401 | B91: ER- 6-1 main (3206 ft) | C91: 662.1 | D91: LCA | E91: -3220.227607 | F91: 3882.327607 | G91: YFCM table A-1
A92: 365904115593401 | B92: ER- 6-1 main (3206 ft) | C92: -3220.227607 | D92: LCCU | E92: -5000 | F92: 1779.772393 | G92: YFCM
A93: 365904115593401 | B93: ER- 6-1 main (3206 ft) | C93: -5000 | D93: No Data | G93: YFCM
A94: 365904115593406 | B94: ER- 6-1 main (lower zone) | C94: 1200.088393 | D94: AA3 | E94: 1100.1 | F94: 99.98839307 | G94: YFCM
A95: 365904115593406 | B95: ER- 6-1 main (lower zone) | C95: 1100.1 | D95: TMLVTA | E95: 1048.9 | F95: 51.2 | G95: YFCM table A-1
A96: 365904115593406 | B96: ER- 6-1 main (lower zone) | C96: 1048.9 | D96: UTCU | E96: 1035.5 | F96: 13.4 | G96: YFCM table A-1
A97: 365904115593406 | B97: ER- 6-1 main (lower zone) | C97: 1035.5 | D97: TSA | E97: 959.9 | F97: 75.6 | G97: YFCM table A-1
A98: 365904115593406 | B98: ER- 6-1 main (lower zone) | C98: 959.9 | D98: LTCU | E98: 767.9 | F98: 192 | G98: YFCM table A-1
A99: 365904115593406 | B99: ER- 6-1 main (lower zone) | C99: 767.9 | D99: OSBCU | E99: 673.4 | F99: 94.5 | G99: YFCM table A-1
A100: 365904115593406 | B100: ER- 6-1 main (lower zone) | C100: 673.4 | D100: ATCU | E100: 662.1 | F100: 11.3 | G100: YFCM table A-1
A101: 365904115593406 | B101: ER- 6-1 main (lower zone) | C101: 662.1 | D101: LCA | E101: -3220.227607 | F101: 3882.327607 | G101: YFCM table A-1
A102: 365904115593406 | B102: ER- 6-1 main (lower zone) | C102: -3220.227607 | D102: LCCU | E102: -5000 | F102: 1779.772393 | G102: YFCM
A103: 365904115593406 | B103: ER- 6-1 main (lower zone) | C103: -5000 | D103: No Data | G103: YFCM
A104: 365904115593407 | B104: ER- 6-1 main (upper zone) | C104: 1200.088393 | D104: AA3 | E104: 1100.1 | F104: 99.98839307 | G104: YFCM
A105: 365904115593407 | B105: ER- 6-1 main (upper zone) | C105: 1100.1 | D105: TMLVTA | E105: 1048.9 | F105: 51.2 | G105: YFCM table A-1
A106: 365904115593407 | B106: ER- 6-1 main (upper zone) | C106: 1048.9 | D106: UTCU | E106: 1035.5 | F106: 13.4 | G106: YFCM table A-1
A107: 365904115593407 | B107: ER- 6-1 main (upper zone) | C107: 1035.5 | D107: TSA | E107: 959.9 | F107: 75.6 | G107: YFCM table A-1
A108: 365904115593407 | B108: ER- 6-1 main (upper zone) | C108: 959.9 | D108: LTCU | E108: 767.9 | F108: 192 | G108: YFCM table A-1
A109: 365904115593407 | B109: ER- 6-1 main (upper zone) | C109: 767.9 | D109: OSBCU | E109: 673.4 | F109: 94.5 | G109: YFCM table A-1
A110: 365904115593407 | B110: ER- 6-1 main (upper zone) | C110: 673.4 | D110: ATCU | E110: 662.1 | F110: 11.3 | G110: YFCM table A-1
A111: 365904115593407 | B111: ER- 6-1 main (upper zone) | C111: 662.1 | D111: LCA | E111: -3220.227607 | F111: 3882.327607 | G111: YFCM table A-1
A112: 365904115593407 | B112: ER- 6-1 main (upper zone) | C112: -3220.227607 | D112: LCCU | E112: -5000 | F112: 1779.772393 | G112: YFCM
A113: 365904115593407 | B113: ER- 6-1 main (upper zone) | C113: -5000 | D113: No Data | G113: YFCM
A114: 365904115593403 | B114: ER- 6-1 piezometer | C114: 1200.088393 | D114: AA3 | E114: 1100.1 | F114: 99.98839307 | G114: YFCM
A115: 365904115593403 | B115: ER- 6-1 piezometer | C115: 1100.1 | D115: TMLVTA | E115: 1048.9 | F115: 51.2 | G115: YFCM table A-1
A116: 365904115593403 | B116: ER- 6-1 piezometer | C116: 1048.9 | D116: UTCU | E116: 1035.5 | F116: 13.4 | G116: YFCM table A-1
A117: 365904115593403 | B117: ER- 6-1 piezometer | C117: 1035.5 | D117: TSA | E117: 959.9 | F117: 75.6 | G117: YFCM table A-1
A118: 365904115593403 | B118: ER- 6-1 piezometer | C118: 959.9 | D118: LTCU | E118: 767.9 | F118: 192 | G118: YFCM table A-1
A119: 365904115593403 | B119: ER- 6-1 piezometer | C119: 767.9 | D119: OSBCU | E119: 673.4 | F119: 94.5 | G119: YFCM table A-1
A120: 365904115593403 | B120: ER- 6-1 piezometer | C120: 673.4 | D120: ATCU | E120: 662.1 | F120: 11.3 | G120: YFCM table A-1
A121: 365904115593403 | B121: ER- 6-1 piezometer | C121: 662.1 | D121: LCA | E121: -3220.227607 | F121: 3882.327607 | G121: YFCM table A-1
A122: 365904115593403 | B122: ER- 6-1 piezometer | C122: -3220.227607 | D122: LCCU | E122: -5000 | F122: 1779.772393 | G122: YFCM
A123: 365904115593403 | B123: ER- 6-1 piezometer | C123: -5000 | D123: No Data | G123: YFCM
A124: 365904115593402 | B124: ER- 6-1-1 | C124: 1200.054865 | D124: AA3 | E124: 1100.04 | F124: 100.0148647 | G124: YFCM
A125: 365904115593402 | B125: ER- 6-1-1 | C125: 1100.04 | D125: TMLVTA | E125: 1048.84 | F125: 51.2 | G125: YFCM table A-1
A126: 365904115593402 | B126: ER- 6-1-1 | C126: 1048.84 | D126: UTCU | E126: 1035.44 | F126: 13.4 | G126: YFCM table A-1
A127: 365904115593402 | B127: ER- 6-1-1 | C127: 1035.44 | D127: TSA | E127: 959.84 | F127: 75.6 | G127: YFCM table A-1
A128: 365904115593402 | B128: ER- 6-1-1 | C128: 959.84 | D128: LTCU | E128: 767.84 | F128: 192 | G128: YFCM table A-1
A129: 365904115593402 | B129: ER- 6-1-1 | C129: 767.84 | D129: OSBCU | E129: 673.34 | F129: 94.5 | G129: YFCM table A-1
A130: 365904115593402 | B130: ER- 6-1-1 | C130: 673.34 | D130: ATCU | E130: 662.04 | F130: 11.3 | G130: YFCM table A-1
A131: 365904115593402 | B131: ER- 6-1-1 | C131: 662.04 | D131: LCA | E131: -3219.644135 | F131: 3881.684135 | G131: YFCM table A-1
A132: 365904115593402 | B132: ER- 6-1-1 | C132: -3219.644135 | D132: LCCU | E132: -5000 | F132: 1780.355865 | G132: YFCM
A133: 365904115593402 | B133: ER- 6-1-1 | C133: -5000 | D133: No Data | G133: YFCM
A134: 365901115593501 | B134: ER- 6-1-2 main | C134: 1199.50317 | D134: AA3 | E134: 1098.4 | F134: 101.10317 | G134: YFCM
A135: 365901115593501 | B135: ER- 6-1-2 main | C135: 1098.4 | D135: TMLVTA | E135: 1047.2 | F135: 51.2 | G135: YFCM table A-1
A136: 365901115593501 | B136: ER- 6-1-2 main | C136: 1047.2 | D136: UTCU | E136: 1033.8 | F136: 13.4 | G136: YFCM table A-1
A137: 365901115593501 | B137: ER- 6-1-2 main | C137: 1033.8 | D137: TSA | E137: 959.5 | F137: 74.3 | G137: YFCM table A-1
A138: 365901115593501 | B138: ER- 6-1-2 main | C138: 959.5 | D138: LTCU | E138: 767.5 | F138: 192 | G138: YFCM table A-1
A139: 365901115593501 | B139: ER- 6-1-2 main | C139: 767.5 | D139: OSBCU | E139: 662.5 | F139: 105 | G139: YFCM table A-1
A140: 365901115593501 | B140: ER- 6-1-2 main | C140: 662.5 | D140: ATCU | E140: 660.4 | F140: 2.1 | G140: YFCM table A-1
A141: 365901115593501 | B141: ER- 6-1-2 main | C141: 660.4 | D141: LCA | E141: -3226.94283 | F141: 3887.34283 | G141: YFCM table A-1
A142: 365901115593501 | B142: ER- 6-1-2 main | C142: -3226.94283 | D142: LCCU | E142: -5000 | F142: 1773.05717 | G142: YFCM
A143: 365901115593501 | B143: ER- 6-1-2 main | C143: -5000 | D143: No Data | G143: YFCM
A144: 365901115593502 | B144: ER- 6-1-2 piezometer | C144: 1199.50317 | D144: AA3 | E144: 1098.4 | F144: 101.10317 | G144: YFCM
A145: 365901115593502 | B145: ER- 6-1-2 piezometer | C145: 1098.4 | D145: TMLVTA | E145: 1047.2 | F145: 51.2 | G145: YFCM table A-1
A146: 365901115593502 | B146: ER- 6-1-2 piezometer | C146: 1047.2 | D146: UTCU | E146: 1033.8 | F146: 13.4 | G146: YFCM table A-1
A147: 365901115593502 | B147: ER- 6-1-2 piezometer | C147: 1033.8 | D147: TSA | E147: 959.5 | F147: 74.3 | G147: YFCM table A-1
A148: 365901115593502 | B148: ER- 6-1-2 piezometer | C148: 959.5 | D148: LTCU | E148: 767.5 | F148: 192 | G148: YFCM table A-1
A149: 365901115593502 | B149: ER- 6-1-2 piezometer | C149: 767.5 | D149: OSBCU | E149: 662.5 | F149: 105 | G149: YFCM table A-1
A150: 365901115593502 | B150: ER- 6-1-2 piezometer | C150: 662.5 | D150: ATCU | E150: 660.4 | F150: 2.1 | G150: YFCM table A-1
A151: 365901115593502 | B151: ER- 6-1-2 piezometer | C151: 660.4 | D151: LCA | E151: -3226.94283 | F151: 3887.34283 | G151: YFCM table A-1
A152: 365901115593502 | B152: ER- 6-1-2 piezometer | C152: -3226.94283 | D152: LCCU | E152: -5000 | F152: 1773.05717 | G152: YFCM
A153: 365901115593502 | B153: ER- 6-1-2 piezometer | C153: -5000 | D153: No Data | G153: YFCM
A154: 365740116043501 | B154: ER- 6-2 | C154: 1289.703731 | D154: AA3 | E154: 1258.9 | F154: 30.8037308 | G154: YFCM
A155: 365740116043501 | B155: ER- 6-2 | C155: 1258.9 | D155: LCA3 | E155: 410.8 | F155: 848.1 | G155: YFCM table A-1
A156: 365740116043501 | B156: ER- 6-2 | C156: 410.8 | D156: UCCU | E156: -249.1552692 | F156: 659.9552692 | G156: YFCM table A-1
A157: 365740116043501 | B157: ER- 6-2 | C157: -249.1552692 | D157: LCA | E157: -4495.124269 | F157: 4245.969 | G157: YFCM
A158: 365740116043501 | B158: ER- 6-2 | C158: -4495.124269 | D158: LCCU | E158: -5000 | F158: 504.8757308 | G158: YFCM
A159: 365740116043501 | B159: ER- 6-2 | C159: -5000 | D159: No Data | G159: YFCM
A160: 370424115594301 | B160: ER- 7-1 | C160: 1294.260546 | D160: AA3 | E160: 1228.7 | F160: 65.56054621 | G160: YFCM
A161: 370424115594301 | B161: ER- 7-1 | C161: 1228.7 | D161: TMLVTA | E161: 1065.6 | F161: 163.1 | G161: YFCM table A-1
A162: 370424115594301 | B162: ER- 7-1 | C162: 1065.6 | D162: LTCU | E162: 924.8 | F162: 140.8 | G162: YFCM table A-1
A163: 370424115594301 | B163: ER- 7-1 | C163: 924.8 | D163: OSBCU | E163: 779.1 | F163: 145.7 | G163: YFCM table A-1
A164: 370424115594301 | B164: ER- 7-1 | C164: 779.1 | D164: LCA | E164: -2485.608454 | F164: 3264.708454 | G164: YFCM table A-1
A165: 370424115594301 | B165: ER- 7-1 | C165: -2485.608454 | D165: LCCU | E165: -5000 | F165: 2514.391546 | G165: YFCM
A166: 370424115594301 | B166: ER- 7-1 | C166: -5000 | D166: No Data | G166: YFCM
A167: 371248116032101 | B167: ER- 8-1 | C167: 1469.09 | D167: AA3 | E167: 1426.79 | F167: 42.3 | G167: YFCM
A168: 371248116032101 | B168: ER- 8-1 | C168: 1426.79 | D168: TMLVTA | E168: 1374.59 | F168: 52.2 | G168: YFCM table A-1
A169: 371248116032101 | B169: ER- 8-1 | C169: 1374.59 | D169: OSBCU | E169: 1134.99 | F169: 239.6 | G169: YFCM table A-1
A170: 371248116032101 | B170: ER- 8-1 | C170: 1134.99 | D170: LCA | E170: 930.19 | F170: 204.8 | G170: YFCM table A-1
A171: 371248116032101 | B171: ER- 8-1 | C171: 930.19 | D171: MGCU | E171: -5000 | F171: 5930.19 | G171: YFCM table A-1
A172: 371248116032101 | B172: ER- 8-1 | C172: -5000 | D172: No Data | G172: YFCM
A173: 371248116032102 | B173: ER- 8-1 (recompleted) | C173: 1469.09 | D173: AA3 | E173: 1426.79 | F173: 42.3 | G173: YFCM table A-1
A174: 371248116032102 | B174: ER- 8-1 (recompleted) | C174: 1426.79 | D174: TMLVTA | E174: 1374.59 | F174: 52.2 | G174: YFCM table A-1
A175: 371248116032102 | B175: ER- 8-1 (recompleted) | C175: 1374.59 | D175: OSBCU | E175: 1134.99 | F175: 239.6 | G175: YFCM table A-1
A176: 371248116032102 | B176: ER- 8-1 (recompleted) | C176: 1134.99 | D176: LCA | E176: 930.19 | F176: 204.8 | G176: YFCM table A-1
A177: 371248116032102 | B177: ER- 8-1 (recompleted) | C177: 930.19 | D177: MGCU | E177: -5000 | F177: 5930.19 | G177: YFCM table A-1
A178: 371248116032102 | B178: ER- 8-1 (recompleted) | C178: -5000 | D178: No Data | G178: YFCM
A179: 371019116072101 | B179: ER-12-2 main | C179: 1433.994757 | D179: AA | E179: 1297.02456 | F179: 136.9701974 | G179: RMSM
A180: 371019116072101 | B180: ER-12-2 main | C180: 1297.02456 | D180: LTCU | E180: 1248.2 | F180: 48.82456 | G180: RMSM table A-3
A181: 371019116072101 | B181: ER-12-2 main | C181: 1248.2 | D181: UCCU | E181: -825.2802426 | F181: 2073.480243 | G181: RMSM table A-3
A182: 371019116072101 | B182: ER-12-2 main | C182: -825.2802426 | D182: LCA | E182: -4816.517243 | F182: 3991.237 | G182: RMSM
A183: 371019116072101 | B183: ER-12-2 main | C183: -4816.517243 | D183: LCCU | E183: -5000 | F183: 183.4827574 | G183: RMSM
A184: 371019116072101 | B184: ER-12-2 main | C184: -5000 | D184: No Data | G184: RMSM
A185: 371019116072102 | B185: ER-12-2 main (lower zone) | C185: 1433.994757 | D185: AA | E185: 1297.02456 | F185: 136.9701974 | G185: RMSM
A186: 371019116072102 | B186: ER-12-2 main (lower zone) | C186: 1297.02456 | D186: LTCU | E186: 1248.2 | F186: 48.82456 | G186: RMSM table A-3
A187: 371019116072102 | B187: ER-12-2 main (lower zone) | C187: 1248.2 | D187: UCCU | E187: -825.2802426 | F187: 2073.480243 | G187: RMSM table A-3
A188: 371019116072102 | B188: ER-12-2 main (lower zone) | C188: -825.2802426 | D188: LCA | E188: -4816.517243 | F188: 3991.237 | G188: RMSM
A189: 371019116072102 | B189: ER-12-2 main (lower zone) | C189: -4816.517243 | D189: LCCU | E189: -5000 | F189: 183.4827574 | G189: RMSM
A190: 371019116072102 | B190: ER-12-2 main (lower zone) | C190: -5000 | D190: No Data | G190: RMSM
A191: 371019116072103 | B191: ER-12-2 main (upper zone) | C191: 1433.994757 | D191: AA | E191: 1297.02456 | F191: 136.9701974 | G191: RMSM
A192: 371019116072103 | B192: ER-12-2 main (upper zone) | C192: 1297.02456 | D192: LTCU | E192: 1248.2 | F192: 48.82456 | G192: RMSM table A-3
A193: 371019116072103 | B193: ER-12-2 main (upper zone) | C193: 1248.2 | D193: UCCU | E193: -825.2802426 | F193: 2073.480243 | G193: RMSM table A-3
A194: 371019116072103 | B194: ER-12-2 main (upper zone) | C194: -825.2802426 | D194: LCA | E194: -4816.517243 | F194: 3991.237 | G194: RMSM
A195: 371019116072103 | B195: ER-12-2 main (upper zone) | C195: -4816.517243 | D195: LCCU | E195: -5000 | F195: 183.4827574 | G195: RMSM
A196: 371019116072103 | B196: ER-12-2 main (upper zone) | C196: -5000 | D196: No Data | G196: RMSM
A197: 371019116072104 | B197: ER-12-2 piezometer | C197: 1433.994757 | D197: AA | E197: 1297.02456 | F197: 136.9701974 | G197: RMSM
A198: 371019116072104 | B198: ER-12-2 piezometer | C198: 1297.02456 | D198: LTCU | E198: 1248.2 | F198: 48.82456 | G198: RMSM table A-3
A199: 371019116072104 | B199: ER-12-2 piezometer | C199: 1248.2 | D199: UCCU | E199: -825.2802426 | F199: 2073.480243 | G199: RMSM table A-3
A200: 371019116072104 | B200: ER-12-2 piezometer | C200: -825.2802426 | D200: LCA | E200: -4816.517243 | F200: 3991.237 | G200: RMSM
... 8461 more rows

Sheet ConsWL
A1: SiteID | B1: WellID | C1: Lat83 | D1: Long83 | E1: LSAltFt | F1: HoleBotAltFT | G1: WLAltAveFt | H1: Qualifier | I1: WLaltAveFtNoQ | J1: OpenTopFt | K1: OpenBotFt | L1: DetNAMENV209 | M1: DBFt | N1: DBAltFt | O1: Yld
A2: 370725116033901 | B2: ER- 2-1 main (shallow) | C2: 37.12523018 | D2: -116.0627679 | E2: 4215.86 | F2: 1615.9 | G2: 2491 | I2: 2491 | J2: 2574 | K2: 2039 | M2: 9999
A3: 370725116033902 | B3: ER- 2-1 piezometer (deep) | C3: 37.12523018 | D3: -116.0627679 | E3: 4215.86 | F3: 1615.9 | G3: est2500 | H3: est | I3: 2500 | J3: 1903 | K3: 1616 | M3: 9999
A4: 370116115561301 | B4: ER- 3-1-1 (deep) | C4: 37.01925106 | D4: -115.936776 | E4: 4407 | F4: 1600 | G4: 2391 | I4: 2391 | J4: 1895 | K4: 1600 | M4: 9999
A5: 370116115561302 | B5: ER- 3-1-2 (shallow) | C5: 37.01925106 | D5: -115.936776 | E5: 4407 | F5: 1600 | G5: 2391 | I5: 2391 | J5: 2199 | K5: 2097 | M5: 9999
A6: 370214116021001 | B6: ER- 3-2-1 (deep) | C6: 37.0371304 | D6: -116.0370714 | E6: 4010.09 | F6: 1010.1 | G6: 2404 | I6: 2404 | J6: 1150 | K6: 1010 | M6: 9999
A7: 370214116021002 | B7: ER- 3-2-2 (middle) | C7: 37.0371304 | D7: -116.0370714 | E7: 4010.09 | F7: 1010.1 | G7: 2407 | I7: 2407 | J7: 1422 | K7: 1374 | M7: 9999
A8: 370214116021003 | B8: ER- 3-2-3 (shallow) | C8: 37.0371304 | D8: -116.0370714 | E8: 4010.09 | F8: 1010.1 | G8: est2400 | H8: est | I8: 2400 | J8: 2460 | K8: 2120 | M8: 9999
A9: 365904115593404 | B9: ER- 6-1 main (2129 ft) | C9: 36.98440027 | D9: -115.99373 | E9: 3934.7 | F9: 1805.7 | G9: 2387 | I9: 2387 | J9: 2116 | K9: 1806 | M9: 9999
A10: 365904115593405 | B10: ER- 6-1 main (2243 ft) | C10: 36.9844086 | D10: -115.99373 | E10: 3937.25 | F10: 731.2 | G10: 2390 | I10: 2390 | J10: 2118 | K10: 1694 | M10: 9999
A11: 365904115593401 | B11: ER- 6-1 main (3206 ft) | C11: 36.9844086 | D11: -115.99373 | E11: 3937.25 | F11: 731.2 | G11: 2390 | I11: 2390 | J11: 2118 | K11: 731 | M11: 9999
A12: 365904115593406 | B12: ER- 6-1 main (lower zone) | C12: 36.9844086 | D12: -115.99373 | E12: 3937.25 | F12: 731.2 | G12: 2390 | I12: 2390 | J12: 1337 | K12: 731 | M12: 9999
A13: 365904115593407 | B13: ER- 6-1 main (upper zone) | C13: 36.9844086 | D13: -115.99373 | E13: 3937.25 | F13: 731.2 | G13: 2390 | I13: 2390 | J13: 2118 | K13: 1338 | M13: 9999
A14: 365904115593403 | B14: ER- 6-1 piezometer | C14: 36.9844086 | D14: -115.9937328 | E14: 3937.25 | F14: 1808.2 | G14: 2463 | I14: 2463 | J14: 2502 | K14: 2395 | M14: 9999
A15: 365904115593402 | B15: ER- 6-1-1 | C15: 36.98427249 | D15: -115.9936967 | E15: 3937.14 | F15: 1852.1 | G15: 2391 | I15: 2391 | J15: 2102 | K15: 1885 | M15: 9999
A16: 365901115593501 | B16: ER- 6-1-2 main | C16: 36.98385305 | D16: -115.9939189 | E16: 3935.33 | F16: 735.3 | G16: 2390 | I16: 2390 | J16: 2160 | K16: 735 | M16: 9999
A17: 365901115593502 | B17: ER- 6-1-2 piezometer | C17: 36.98385305 | D17: -115.9939189 | E17: 3935.33 | F17: 735.3 | G17: 2463 | I17: 2463 | J17: 3815 | K17: 2348 | M17: 9999
A18: 365740116043501 | B18: ER- 6-2 | C18: 36.9609831 | D18: -116.077128 | E18: 4231.26 | F18: 801.3 | G18: 2447 | I18: 2447 | J18: 2485 | K18: 801 | M18: 9999
A19: 370424115594301 | B19: ER- 7-1 | C19: 37.07327805 | D19: -115.996131 | E19: 4246.21 | F19: 1746.2 | G19: 2393 | I19: 2393 | J19: 2471 | K19: 1746 | M19: 9999
A20: 371248116032101 | B20: ER- 8-1 | C20: 37.21322747 | D20: -116.0565742 | E20: 4819.85 | F20: 1956.9 | G20: est2525 | H20: est | I20: 2525 | J20: 2925 | K20: 1957 | M20: 9999
A21: 371248116032102 | B21: ER- 8-1 (recompleted) | C21: 37.21322747 | D21: -116.0565742 | E21: 4819.85 | F21: 1956.9 | G21: 2526 | I21: 2526 | J21: 2873 | K21: 1957 | M21: 9999
A22: 371019116072101 | B22: ER-12-2 main | C22: 37.17147946 | D22: -116.1233849 | E22: 4704.65 | F22: -2178.4 | G22: est4530 | H22: est | I22: 4530 | J22: 1741 | K22: -2178 | M22: 9999
A23: 371019116072102 | B23: ER-12-2 main (lower zone) | C23: 37.17147946 | D23: -116.1233849 | E23: 4704.65 | F23: -2178.4 | G23: gt4528 | H23: gt | I23: 4528 | J23: -498 | K23: -2178 | M23: 9999
A24: 371019116072103 | B24: ER-12-2 main (upper zone) | C24: 37.17147946 | D24: -116.1233849 | E24: 4704.65 | F24: -2178.4 | G24: gt4528 | H24: gt | I24: 4528 | J24: 1741 | K24: -498 | M24: 9999
A25: 371019116072104 | B25: ER-12-2 piezometer | C25: 37.17147946 | D25: -116.1233849 | E25: 4704.65 | F25: -2178.4 | G25: 4285 | I25: 4285 | J25: 4585 | K25: 4055 | M25: 9999
A26: 371340116035201 | B26: ME- 1 | C26: 37.22780235 | D26: -116.0653136 | E26: 5210 | F26: 4832 | G26: 4875 | I26: 4875 | J26: 5178 | K26: 4832 | M26: 9999
A27: 371352116034601 | B27: ME- 2 | C27: 37.23109404 | D27: -116.0635219 | E27: 5246 | F27: 4972 | G27: lt5140 | H27: lt | I27: 5140 | J27: 5232 | K27: 4972 | M27: 9999
A28: 371346116035801 | B28: ME- 3 | C28: 37.22950789 | D28: -116.066883 | E28: 5316 | F28: 4338 | G28: 4839 | I28: 4839 | J28: 5296 | K28: 4338 | M28: 9999
A29: 371400116041101 | B29: ME- 4 | C29: 37.23333839 | D29: -116.0706722 | E29: 5490 | F29: 4303 | G29: lt4548 | H29: lt | I29: 4548 | J29: 5483 | K29: 4303 | M29: 9999
A30: 370311115591901 | B30: TH- 9 | C30: 37.0530142 | D30: -115.9893473 | E30: 4176 | F30: 2223 | G30: 2391 | I30: 2391 | J30: 4096 | K30: 2223 | M30: 9999
A31: 370353116020201 | B31: TW- 7 | C31: 37.06481655 | D31: -116.0346438 | E31: 4057.76 | F31: 1785.8 | G31: 2397 | I31: 2397 | J31: 4017 | K31: 1786 | M31: 9999
A32: 365849116002101 | B32: TW- B | C32: 36.97915009 | D32: -116.0146169 | E32: 3931.84 | F32: 2256.8 | G32: 2428 | I32: 2428 | J32: 2500 | K32: 2257 | M32: 9999
A33: 370418116044501 | B33: TW- D | C33: 37.07439118 | D33: -116.0758874 | E33: 4150.47 | F33: 2200.5 | G33: 2427 | I33: 2427 | J33: 2450 | K33: 2200 | M33: 9999
A34: 370321115594201 | B34: TW- E (1970 ft) | C34: 37.05579747 | D34: -115.9958337 | E34: 4172 | F34: 2202 | G34: 2456 | I34: 2456 | J34: 3592 | K34: 2202 | M34: 9999
A35: 370321115594202 | B35: TW- E (2430 ft) | C35: 37.05579747 | D35: -115.9958337 | E35: 4172 | F35: 1742 | G35: 2440 | I35: 2440 | J35: 4172 | K35: 1742 | M35: 9999
A36: 370321115594203 | B36: TW- E (2620 ft) | C36: 37.05579747 | D36: -115.9958337 | E36: 4172 | F36: 1552 | G36: 2392 | I36: 2392 | J36: 4172 | K36: 1552 | M36: 9999
A37: 370029116033001 | B37: U - 1a.01 | C37: 37.0070969 | D37: -116.0590887 | E37: 3996 | F37: 3996 | G37: est2423 | H37: est | I37: 2423 | J37: 9999 | K37: 9999 | L37: Ledoux | M37: 955 | N37: 3041 | O37: Less than 20 k
A38: 370124116033101 | B38: U - 1c | C38: 37.02321078 | D38: -116.0595 | E38: 4031.09 | F38: 2931.1 | G38: est2422 | H38: est | I38: 2422 | J38: 9999 | K38: 9999 | L38: Yerba | M38: 1089 | N38: 2942.1 | O38: Less than 20 k
A39: 370218116032401 | B39: U - 1d (Sundown-A) | C39: 37.0381691 | D39: -116.0576668 | E39: 4046.99 | F39: 2547 | G39: est2424 | H39: est | I39: 2424 | J39: 9999 | K39: 9999 | L39: Sundown-A | M39: 887 | N39: 3160 | O39: Less than 20 k
A40: 370218116032402 | B40: U - 1d (Sundown-B) | C40: 37.0381691 | D40: -116.0576668 | E40: 4047 | F40: 2547 | G40: est2424 | H40: est | I40: 2424 | J40: 9999 | K40: 9999 | L40: Sundown-B | M40: 840 | N40: 3207 | O40: Less than 20 k
A41: 370118116033101 | B41: U - 1e | C41: 37.02169967 | D41: -116.0595111 | E41: 4027 | F41: 2827 | G41: lt2832 | H41: lt | I41: 2832 | J41: 4027 | K41: 2827 | M41: 9999
A42: 370952116043601 | B42: U - 2a | C42: 37.16448278 | D42: -116.0774162 | E42: 4402.2 | F42: 3640.2 | G42: est2422 | H42: est | I42: 2422 | J42: 9999 | K42: 9999 | L42: Alpaca | M42: 738 | N42: 3664.2 | O42: 325 tons
A43: 370810116041401 | B43: U - 2aa | C43: 37.1361634 | D43: -116.0715268 | E43: 4296.11 | F43: 3674.1 | G43: est2461 | H43: est | I43: 2461 | J43: 9999 | K43: 9999 | L43: Club | M43: 592 | N43: 3704.1 | O43: Less than 20 k
A44: 370825116040001 | B44: U - 2ab | C44: 37.140319 | D44: -116.067521 | E44: 4297.31 | F44: 3532.3 | G44: est2446 | H44: est | I44: 2446 | J44: 9999 | K44: 9999 | L44: Tee | M44: 624 | N44: 3673.3 | O44: 7 kt
A45: 370751116034201 | B45: U - 2ad | C45: 37.13069685 | D45: -116.0624652 | E45: 4256.2 | F45: 3376.2 | G45: est2452 | H45: est | I45: 2452 | J45: 9999 | K45: 9999 | L45: Cashmere | M45: 762 | N45: 3494.2 | O45: Less than 20 k
A46: 370753116040501 | B46: U - 2af | C46: 37.1313523 | D46: -116.0689349 | E46: 4275.2 | F46: 3495.2 | G46: est2458 | H46: est | I46: 2458 | J46: 9999 | K46: 9999 | L46: Kennebec | M46: 742 | N46: 3533.2 | O46: Low
A47: 370751116040101 | B47: U - 2ag | C47: 37.13076068 | D47: -116.067832 | E47: 4270.11 | F47: 4063.1 | G47: est2459 | H47: est | I47: 2459 | J47: 9999 | K47: 9999 | L47: Mullet | M47: 198 | N47: 4072.1 | O47: Low
A48: 370754116040101 | B48: U - 2ah | C48: 37.13174679 | D48: -116.0677238 | E48: 4269.51 | F48: 3804.5 | G48: est2455 | H48: est | I48: 2455 | J48: 9999 | K48: 9999 | L48: Pongee | M48: 440 | N48: 3829.5 | O48: Less than 20 k
A49: 370803116041102 | B49: U - 2ai (Drill [Source-Lower]) | C49: 37.13423565 | D49: -116.0706239 | E49: 4286.41 | F49: 3546.4 | G49: est2458 | H49: est | I49: 2458 | J49: 9999 | K49: 9999 | L49: Drill (Source-Lower) | M49: 718 | N49: 3568.4 | O49: 3.4 kt
A50: 370803116041101 | B50: U - 2ai (Drill [Target-Upper]) | C50: 37.13423565 | D50: -116.0706239 | E50: 4286.38 | F50: 3546.4 | G50: est2458 | H50: est | I50: 2458 | J50: 9999 | K50: 9999 | L50: Drill (Target-Upper) | M50: 617 | N50: 3669.4 | O50: Less than 20 k
A51: 370814116041201 | B51: U - 2ak | C51: 37.13725787 | D51: -116.0709434 | E51: 4299.02 | F51: 3669 | G51: est2460 | H51: est | I51: 2460 | J51: 9999 | K51: 9999 | L51: Centaur | M51: 564 | N51: 3735 | O51: Less than 20 k
A52: 370827116034701 | B52: U - 2aL | C52: 37.14079128 | D52: -116.0640487 | E52: 4289.3 | F52: 3325.3 | G52: est2440 | H52: est | I52: 2440 | J52: 9999 | K52: 9999 | L52: Emerson | M52: 853 | N52: 3436.3 | O52: Less than 20 k
A53: 370749116035001 | B53: U - 2am | C53: 37.1303607 | D53: -116.064818 | E53: 4257.91 | F53: 1702.9 | G53: est2457 | H53: est | I53: 2457 | J53: 9999 | K53: 9999 | L53: Commodore | M53: 2445 | N53: 1812.9 | O53: 250 kt
A54: 370803116041601 | B54: U - 2an | C54: 37.1342384 | D54: -116.0719879 | E54: 4290.98 | F54: 3376 | G54: est2462 | H54: est | I54: 2462 | J54: 9999 | K54: 9999 | L54: Tapestry | M54: 816 | N54: 3475 | O54: Less than 20 k
A55: 370848116034701 | B55: U - 2ao | C55: 37.1466718 | D55: -116.063982 | E55: 4301.31 | F55: 3351.3 | G55: est2435 | H55: est | I55: 2435 | J55: 9999 | K55: 9999 | L55: Flotost | M55: 903 | N55: 3398.3 | O55: Less than 20 k
A56: 370820116034701 | B56: U - 2ap | C56: 37.1387357 | D56: -116.0640737 | E56: 4283.79 | F56: 3513.8 | G56: est2447 | H56: est | I56: 2447 | J56: 9999 | K56: 9999 | L56: Effendi | M56: 725 | N56: 3558.8 | O56: Less than 20 k
A57: 370726116040301 | B57: U - 2ar | C57: 37.12386346 | D57: -116.0683265 | E57: 4239 | F57: 1939 | G57: est2450 | H57: est | I57: 2450 | J57: 9999 | K57: 9999 | L57: Asiago | M57: 1083 | N57: 3156 | O57: Less than 20 k
A58: 370712116033201 | B58: U - 2as | C58: 37.1200024 | D58: -116.059701 | E58: 4218.31 | F58: 2518.3 | G58: est2528 | H58: est | I58: 2528 | J58: 9999 | K58: 9999 | L58: Clarksmobile | M58: 1551 | N58: 2667.3 | O58: 20 to 200 kt
A59: 370700116031301 | B59: U - 2at | C59: 37.11650805 | D59: -116.0545675 | E59: 4198.82 | F59: 2003.8 | G59: est2547 | H59: est | I59: 2547 | J59: 9999 | K59: 9999 | L59: Knox | M59: 2116 | N59: 2082.8 | O59: 20 to 200 kt
A60: 370710116031801 | B60: U - 2au | C60: 37.119383 | D60: -116.055987 | E60: 4209.38 | F60: 2804.4 | G60: est2523 | H60: est | I60: 2523 | J60: 9999 | K60: 9999 | L60: Ildrim | M60: 1346 | N60: 2863.4 | O60: 20 to 200 kt
A61: 370836116035001 | B61: U - 2av | C61: 37.14326905 | D61: -116.0647154 | E61: 4298 | F61: 2105 | G61: 2428 | I61: 2428 | J61: 4219 | K61: 2105 | L61: Calabash | M61: 2050 | N61: 2248 | O61: 110 kt
A62: 370757116040600 | B62: U - 2aw | C62: 37.1325801 | D62: -116.06926 | E62: 4271 | F62: 2105 | G62: est2454 | H62: est | I62: 2454 | J62: 9999 | K62: 9999 | L62: Stanyan | M62: 1880 | N62: 2391 | O62: 20 to 200 kt
A63: 370909116050001 | B63: U - 2ax | C63: 37.1524327 | D63: -116.0842025 | E63: 4397.08 | F63: 2097.1 | G63: est2429 | H63: est | I63: 2429 | J63: 9999 | K63: 9999 | L63: Portmanteau | M63: 2150 | N63: 2247.1 | O63: 20 to 200 kt
A64: 370659116034101 | B64: U - 2ay 1 | C64: 37.1163163 | D64: -116.0623123 | E64: 4214.15 | F64: 2894.1 | G64: est2548 | H64: est | I64: 2548 | J64: 9999 | K64: 9999 | L64: Yannigan-Red | M64: 1286 | N64: 2928.1 | O64: 20 to 200 kt
A65: 370705116035901 | B65: U - 2ay 2 | C65: 37.11800236 | D65: -116.067318 | E65: 4227.13 | F65: 2924.1 | G65: est2512 | H65: est | I65: 2512 | J65: 9999 | K65: 9999 | L65: Yannigan-White | M65: 1295 | N65: 2932.1 | O65: 20 to 200 kt
A66: 370650116035701 | B66: U - 2ay 3 | C66: 37.11375514 | D66: -116.066668 | E66: 4214.45 | F66: 3012.4 | G66: est2540 | H66: est | I66: 2540 | J66: 9999 | K66: 9999 | L66: Yannigan-Blue | M66: 1193 | N66: 3021.4 | O66: 20 to 200 kt
A67: 370648116034401 | B67: U - 2az 1 | C67: 37.11331907 | D67: -116.0632039 | E67: 4191.9 | F67: 2371.9 | G67: est2562 | H67: est | I67: 2562 | J67: 4134 | K67: 2372 | L67: Flask-Green | M67: 1734 | N67: 2457.9 | O67: 105 kt
A68: 370705116034901 | B68: U - 2az 2 | C68: 37.11808294 | D68: -116.0644346 | E68: 4220.41 | F68: 3070.4 | G68: est2526 | H68: est | I68: 2526 | J68: 9999 | K68: 9999 | L68: Flask-Yellow | M68: 1100 | N68: 3120.4 | O68: Less than 20 k
A69: 370658116040001 | B69: U - 2az 3 | C69: 37.1161468 | D69: -116.0675736 | E69: 4220.21 | F69: 3670.2 | G69: est2522 | H69: est | I69: 2522 | J69: 9999 | K69: 9999 | L69: Flask-Red | M69: 500 | N69: 3720.2 | O69: Less than 20 k
A70: 370950116042401 | B70: U - 2b | C70: 37.16376615 | D70: -116.0741633 | E70: 4383.69 | F70: 3823.7 | G70: est2418 | H70: est | I70: 2418 | J70: 9999 | K70: 9999 | L70: St. Lawrence | M70: 546 | N70: 3837.7 | O70: Low
A71: 370938116041301 | B71: U - 2bc | C71: 37.1603995 | D71: -116.0711048 | E71: 4359.91 | F71: 3224.9 | G71: est2419 | H71: est | I71: 2419 | J71: 9999 | K71: 9999 | L71: Parnassia | M71: 1085 | N71: 3274.9 | O71: Less than 20 k
A72: 370919116042001 | B72: U - 2bd | C72: 37.15525784 | D72: -116.0730298 | E72: 4354.4 | F72: 3139.4 | G72: est2424 | H72: est | I72: 2424 | J72: 9999 | K72: 9999 | L72: Vulcan | M72: 1057 | N72: 3297.4 | O72: 25 kt
A73: 370916116044401 | B73: U - 2be | C73: 37.15432998 | D73: -116.0797245 | E73: 4385.3 | F73: 3077.3 | G73: est2430 | H73: est | I73: 2430 | J73: 9999 | K73: 9999 | L73: Noor | M73: 1253 | N73: 3132.3 | O73: 20 to 200 kt
A74: 370950116044701 | B74: U - 2bf | C74: 37.1639216 | D74: -116.0805108 | E74: 4417.71 | F74: 3802.7 | G74: est2430 | H74: est | I74: 2430 | J74: 9999 | K74: 9999 | L74: Gourd-Amber | M74: 595 | N74: 3822.7 | O74: Less than 20 k
A75: 370924116045601 | B75: U - 2bg | C75: 37.1566327 | D75: -116.0831414 | E75: 4407.51 | F75: 3632.5 | G75: est2437 | H75: est | I75: 2437 | J75: 9999 | K75: 9999 | L75: Throw | M75: 757 | N75: 3650.5 | O75: Less than 20 k
A76: 370953116042901 | B76: U - 2bh | C76: 37.1645828 | D76: -116.0757023 | E76: 4393.6 | F76: 3791.6 | G76: est2419 | H76: est | I76: 2419 | J76: 9999 | K76: 9999 | L76: Scuttle | M76: 540 | N76: 3853.6 | O76: 1.7 kt
A77: 370943116045601 | B77: U - 2bi | C77: 37.16192994 | D77: -116.083097 | E77: 4423.41 | F77: 3863.4 | G77: est2452 | H77: est | I77: 2452 | J77: 9999 | K77: 9999 | L77: Oakland | M77: 543 | N77: 3880.4 | O77: Less than 20 k
A78: 370942116043801 | B78: U - 2bj | C78: 37.1617411 | D78: -116.0780579 | E78: 4398.75 | F78: 3783.8 | G78: est2425 | H78: est | I78: 2425 | J78: 9999 | K78: 9999 | L78: Imp | M78: 586 | N78: 3812.8 | O78: Less than 20 k
A79: 370936116045101 | B79: U - 2bl | C79: 37.15991607 | D79: -116.0817441 | E79: 4409.11 | F79: 3629.1 | G79: est2440 | H79: est | I79: 2440 | J79: 9999 | K79: 9999 | L79: Gourd-Brown | M79: 744 | N79: 3665.1 | O79: Less than 20 k
A80: 370946116042701 | B80: U - 2bm | C80: 37.1626828 | D80: -116.0750328 | E80: 4385.61 | F80: 3620.6 | G80: est2420 | H80: est | I80: 2420 | J80: 9999 | K80: 9999 | L80: Lexington | M80: 743 | N80: 3642.6 | O80: Less than 20 k
A81: 370944116043301 | B81: U - 2bn | C81: 37.1622272 | D81: -116.0767523 | E81: 4393.69 | F81: 3699.7 | G81: est2423 | H81: est | I81: 2423 | J81: 9999 | K81: 9999 | L81: Chatty | M81: 639 | N81: 3754.7 | O81: Less than 20 k
A82: 370945116044301 | B82: U - 2bo 1 | C82: 37.16243554 | D82: -116.079494 | E82: 4407.2 | F82: 3732.2 | G82: est2428 | H82: est | I82: 2428 | J82: 9999 | K82: 9999 | L82: Bowl-1 | M82: 650 | N82: 3757.2 | O82: Less than 20 k
A83: 370939116044501 | B83: U - 2bo 2 | C83: 37.16073275 | D83: -116.0800218 | E83: 4401.77 | F83: 3626.8 | G83: est2435 | H83: est | I83: 2435 | J83: 9999 | K83: 9999 | L83: Bowl-2 | M83: 750 | N83: 3651.8 | O83: Less than 20 k
A84: 370937116034901 | B84: U - 2bp 1 | C84: 37.1601968 | D84: -116.0644767 | E84: 4326.11 | F84: 3601.1 | G84: est2417 | H84: est | I84: 2417 | J84: 9999 | K84: 9999 | L84: Spider-A | M84: 700 | N84: 3626.1 | O84: Less than 20 k
A85: 370929116035001 | B85: U - 2bp 2 | C85: 37.15814127 | D85: -116.0646573 | E85: 4324.91 | F85: 3549.9 | G85: est2420 | H85: est | I85: 2420 | J85: 9999 | K85: 9999 | L85: Spider-B | M85: 747 | N85: 3577.9 | O85: Less than 20 k
A86: 370931116040401 | B86: U - 2bq 1 | C86: 37.15869955 | D86: -116.068599 | E86: 4341.89 | F86: 3688.9 | G86: est2420 | H86: est | I86: 2420 | J86: 9999 | K86: 9999 | L86: Kyack-A | M86: 630 | N86: 3711.9 | O86: Less than 20 k
A87: 370927116035801 | B87: U - 2bq 2 | C87: 37.15737179 | D87: -116.0670407 | E87: 4330.76 | F87: 3655.8 | G87: est2421 | H87: est | I87: 2421 | J87: 9999 | K87: 9999 | L87: Kyack-B | M87: 610 | N87: 3720.8 | O87: Less than 20 k
A88: 370848116040101 | B88: U - 2br | C88: 37.14664679 | D88: -116.06771 | E88: 4312.01 | F88: 2486 | G88: est2434 | H88: est | I88: 2434 | J88: 9999 | K88: 9999 | L88: Harebell | M88: 1702 | N88: 2610 | O88: 20 to 200 kt
A89: 370723116033101 | B89: U - 2bs | C89: 37.12299966 | D89: -116.0593844 | E89: 4226.4 | F89: 2226.4 | G89: 2503 | I89: 2503 | J89: 4147 | K89: 2306 | L89: Starwort | M89: 1850 | N89: 2376.4 | O89: 90 kt
A90: 370722116032252 | B90: U - 2bs PS 1DB | C90: 37.1228441 | D90: -116.056912 | E90: 4221 | F90: 1971 | G90: est2500 | H90: est | I90: 2500 | J90: 2056 | K90: 2046 | M90: 9999
A91: 370641116030501 | B91: U - 2bt | C91: 37.1114497 | D91: -116.0522784 | E91: 4182.4 | F91: 2382.4 | G91: gt2556 | H91: gt | I91: 2556 | J91: 4105 | K91: 2382 | M91: 9999
A92: 370636116030501 | B92: U - 2bu | C92: 37.1100775 | D92: -116.0522895 | E92: 4179.2 | F92: 2329.2 | G92: est2559 | H92: est | I92: 2559 | J92: 9999 | K92: 9999 | L92: Miniata | M92: 1735 | N92: 2444.2 | O92: 83 kt
A93: 370854116050901 | B93: U - 2bv | C93: 37.1483771 | D93: -116.0867248 | E93: 4388.09 | F93: 2688.1 | G93: est2449 | H93: est | I93: 2449 | J93: 9999 | K93: 9999 | L93: Portulaca | M93: 1528 | N93: 2860.1 | O93: 20 to 200 kt
A94: 370907116034801 | B94: U - 2bw | C94: 37.15185238 | D94: -116.0643044 | E94: 4312.01 | F94: 3562 | G94: est2432 | H94: est | I94: 2432 | J94: 9999 | K94: 9999 | L94: Sutter | M94: 657 | N94: 3655 | O94: Less than 20 k
A95: 370918116035101 | B95: U - 2bx | C95: 37.1550829 | D95: -116.0649656 | E95: 4318.71 | F95: 3568.7 | G95: est2425 | H95: est | I95: 2425 | J95: 9999 | K95: 9999 | L95: Hulsea | M95: 640 | N95: 3678.7 | O95: Less than 20 k
A96: 370932116042301 | B96: U - 2by | C96: 37.15873838 | D96: -116.0738604 | E96: 4365.61 | F96: 3565.6 | G96: est2423 | H96: est | I96: 2423 | J96: 9999 | K96: 9999 | L96: Polygonum | M96: 700 | N96: 3665.6 | O96: Less than 20 k
A97: 370914116040401 | B97: U - 2bz | C97: 37.15386344 | D97: -116.0685796 | E97: 4332.91 | F97: 2992.9 | G97: est2425 | H97: est | I97: 2425 | J97: 9999 | K97: 9999 | L97: Waller | M97: 1020 | N97: 3312.9 | O97: Less than 20 k
A98: 370943116041501 | B98: U - 2c | C98: 37.16184674 | D98: -116.0717909 | E98: 4368.11 | F98: 3603.1 | G98: est2418 | H98: est | I98: 2418 | J98: 9999 | K98: 9999 | L98: Kermet | M98: 644 | N98: 3724.1 | O98: Less than 20 k
A99: 370822116082702 | B99: U - 2ca | C99: 37.13947098 | D99: -116.1417466 | E99: 4871.59 | F99: 4106.6 | G99: est3342 | H99: est | I99: 3342 | J99: 9999 | K99: 9999 | L99: Stutz | M99: 742 | N99: 4129.6 | O99: Less than 20 k
A100: 370822116082701 | B100: U - 2ca 1 | C100: 37.13950987 | D100: -116.1417716 | E100: 4871.1 | F100: 3398.1 | G100: lt3545 | H100: lt | I100: 3545 | J100: 4803 | K100: 3398 | M100: 9999
A101: 370826116075901 | B101: U - 2cc | C101: 37.1404405 | D101: -116.1340379 | E101: 4719.39 | F101: 4099.4 | G101: est2960 | H101: est | I101: 2960 | J101: 9999 | K101: 9999 | L101: Saxon | M101: 504 | N101: 4215.4 | O101: Less than 20 k
A102: 370813116081401 | B102: U - 2cd | C102: 37.13702658 | D102: -116.1380075 | E102: 4781.43 | F102: 4015.4 | G102: est3150 | H102: est | I102: 3150 | J102: 9999 | K102: 9999 | L102: Traveler | M102: 648 | N102: 4133.4 | O102: Less than 20 k
A103: 370837116080701 | B103: U - 2ce | C103: 37.14360715 | D103: -116.1360769 | E103: 4764.21 | F103: 3549.2 | G103: est3035 | H103: est | I103: 3035 | J103: 9999 | K103: 9999 | L103: Nash | M103: 1194 | N103: 3570.2 | O103: 39 kt
A104: 370814116075801 | B104: U - 2cg | C104: 37.1372766 | D104: -116.1335517 | E104: 4698.81 | F104: 4074.8 | G104: est2956 | H104: est | I104: 2956 | J104: 9999 | K104: 9999 | L104: Heilman | M104: 501 | N104: 4197.8 | O104: Less than 20 k
A105: 370826116083101 | B105: U - 2ch | C105: 37.14039875 | D105: -116.1427077 | E105: 4893.51 | F105: 4018.5 | G105: est3437 | H105: est | I105: 3437 | J105: 9999 | K105: 9999 | L105: Pod-B | M105: 816 | N105: 4077.5 | O105: 14.6 kt (total
A106: 370811116082401 | B106: U - 2ci | C106: 37.1362821 | D106: -116.1408382 | E106: 4837.81 | F106: 3967.8 | G106: est3309 | H106: est | I106: 3309 | J106: 9999 | K106: 9999 | L106: Pod-C | M106: 560 | N106: 4277.8 | O106: 14.6 kt (total
A107: 370807116080901 | B107: U - 2cj | C107: 37.13529049 | D107: -116.136824 | E107: 4761.01 | F107: 3665 | G107: est3080 | H107: est | I107: 3080 | J107: 9999 | K107: 9999 | L107: Pod-D | M107: 1025 | N107: 3736 | O107: 14.6 kt (total
A108: 370825116075001 | B108: U - 2ck | C108: 37.14015998 | D108: -116.1313739 | E108: 4670.71 | F108: 3735.7 | G108: est2899 | H108: est | I108: 2899 | J108: 9999 | K108: 9999 | L108: Pod-A | M108: 875 | N108: 3795.7 | O108: 14.6 kt (total
A109: 370712116073902 | B109: U - 2cmS | C109: 37.1198156 | D109: -116.128343 | E109: 4582.87 | F109: 3007.9 | G109: est2870 | H109: est | I109: 2870 | J109: 9999 | K109: 9999 | L109: Stoddard | M109: 1535 | N109: 3047.9 | O109: 20 to 200 kt
A110: 370717116074001 | B110: U - 2cn | C110: 37.1214656 | D110: -116.1286208 | E110: 4588.94 | F110: 3040.9 | G110: est2873 | H110: est | I110: 2873 | J110: 9999 | K110: 9999 | L110: Cruet | M110: 865 | N110: 3723.9 | O110: 11 kt
A111: 370701116073701 | B111: U - 2co | C111: 37.1167934 | D111: -116.127779 | E111: 4562.11 | F111: 3392.1 | G111: est2870 | H111: est | I111: 2870 | J111: 9999 | K111: 9999 | L111: Kryddost | M111: 1100 | N111: 3462.1 | O111: Less than 20 k
A112: 370652116072201 | B112: U - 2cp | C112: 37.11447678 | D112: -116.123751 | E112: 4509.81 | F112: 3259.8 | G112: est2799 | H112: est | I112: 2799 | J112: 9999 | K112: 9999 | L112: Caboc | M112: 1099 | N112: 3410.8 | O112: Less than 20 k
A113: 370646116071801 | B113: U - 2cq | C113: 37.112649 | D113: -116.122576 | E113: 4499.05 | F113: 3049 | G113: est2790 | H113: est | I113: 2790 | J113: 9999 | K113: 9999 | L113: Gorbea | M113: 1273 | N113: 3226 | O113: 20 to 150 kt
A114: 370838116073101 | B114: U - 2cr | C114: 37.14384059 | D114: -116.1261292 | E114: 4604.01 | F114: 3237 | G114: est2772 | H114: est | I114: 2772 | J114: 9999 | K114: 9999 | L114: Wexford | M114: 1030 | N114: 3574 | O114: Less than 20 k
A115: 370727116071901 | B115: U - 2cs | C115: 37.12404899 | D115: -116.1228595 | E115: 4525.49 | F115: 3025.5 | G115: est2731 | H115: est | I115: 2731 | J115: 9999 | K115: 9999 | L115: Maribo | M115: 1250 | N115: 3275.5 | O115: Less than 20 k
A116: 370702116071901 | B116: U - 2ct | C116: 37.1172212 | D116: -116.1226816 | E116: 4509 | F116: 3009 | G116: lt3092 | H116: lt | I116: 3092 | J116: 4389 | K116: 3009 | M116: 9999
A117: 370743116071902 | B117: U - 2cu (Kawich-Black) | C117: 37.1284434 | D117: -116.122829 | E117: 4525.73 | F117: 3010.7 | G117: est2717 | H117: est | I117: 2717 | J117: 9999 | K117: 9999 | L117: Kawich-Black | M117: 1415 | N117: 3110.7 | O117: Less than 20 k
A118: 370743116071901 | B118: U - 2cu (Kawich-Red) | C118: 37.1284434 | D118: -116.122829 | E118: 4525.49 | F118: 3010.5 | G118: est2717 | H118: est | I118: 2717 | J118: 9999 | K118: 9999 | L118: Kawich-Red | M118: 1215 | N118: 3310.5 | O118: Less than 20 k
A119: 370831116073101 | B119: U - 2cv | C119: 37.14191837 | D119: -116.1261431 | E119: 4598 | F119: 3258 | G119: lt3387 | H119: lt | I119: 3387 | J119: 4598 | K119: 3258 | M119: 9999
A120: 370755116071901 | B120: U - 2cw | C120: 37.13201565 | D120: -116.122954 | E120: 4532 | F120: 2692 | G120: lt2922 | H120: lt | I120: 2922 | J120: 4412 | K120: 2692 | M120: 9999
A121: 370750116051101 | B121: U - 2db (Crew) | C121: 37.13042714 | D121: -116.0873802 | E121: 4312 | F121: 2237 | G121: est2470 | H121: est | I121: 2470 | J121: 9999 | K121: 9999 | L121: Crew | M121: 1177 | N121: 3135 | O121: 20 to 200 kt
A122: 370750116051102 | B122: U - 2db (Crew-2nd) | C122: 37.13042714 | D122: -116.0873802 | E122: 4312.27 | F122: 2237.3 | G122: est2470 | H122: est | I122: 2470 | J122: 9999 | K122: 9999 | L122: Crew-2nd | M122: 1177 | N122: 3135.3 | O122: Less than 20 k
A123: 370750116051103 | B123: U - 2db (Crew-3rd) | C123: 37.13042714 | D123: -116.0873802 | E123: 4312.28 | F123: 2237.3 | G123: est2470 | H123: est | I123: 2470 | J123: 9999 | K123: 9999 | L123: Crew-3rd | M123: 1977 | N123: 2335.3 | O123: Less than 20 k
A124: 370712116043601 | B124: U - 2dc 1 | C124: 37.11984947 | D124: -116.077438 | E124: 4254.03 | F124: 3554 | G124: est2446 | H124: est | I124: 2446 | J124: 9999 | K124: 9999 | L124: Tyg-E | M124: 649 | N124: 3605 | O124: Less than 20 k
A125: 370717116044201 | B125: U - 2dc 2 | C125: 37.12123279 | D125: -116.079102 | E125: 4260.71 | F125: 3530.7 | G125: est2448 | H125: est | I125: 2448 | J125: 9999 | K125: 9999 | L125: Tyg-D | M125: 679 | N125: 3581.7 | O125: Less than 20 k
A126: 370705116043801 | B126: U - 2dc 3 | C126: 37.11800225 | D126: -116.0781047 | E126: 4248.48 | F126: 3448.5 | G126: est2441 | H126: est | I126: 2441 | J126: 9999 | K126: 9999 | L126: Tyg-C | M126: 749 | N126: 3499.5 | O126: Less than 20 k
A127: 370715116045001 | B127: U - 2dc 4 | C127: 37.1207744 | D127: -116.0814298 | E127: 4265.12 | F127: 3465.1 | G127: est2441 | H127: est | I127: 2441 | J127: 9999 | K127: 9999 | L127: Tyg-A | M127: 749 | N127: 3516.1 | O127: Less than 20 k
A128: 370703116044601 | B128: U - 2dc 5 | C128: 37.11754389 | D128: -116.0804325 | E128: 4254.22 | F128: 3368.2 | G128: est2432 | H128: est | I128: 2432 | J128: 9999 | K128: 9999 | L128: Tyg-B | M128: 824 | N128: 3430.2 | O128: Less than 20 k
A129: 370708116045401 | B129: U - 2dc 6 | C129: 37.1188272 | D129: -116.0825993 | E129: 4263.81 | F129: 3338.8 | G129: est2431 | H129: est | I129: 2431 | J129: 9999 | K129: 9999 | L129: Tyg-F | M129: 869 | N129: 3394.8 | O129: Less than 20 k
A130: 370645116045601 | B130: U - 2dd 1 | C130: 37.11232164 | D130: -116.0829687 | E130: 4242.59 | F130: 3292.6 | G130: est2427 | H130: est | I130: 2427 | J130: 9999 | K130: 9999 | L130: Can-Green | M130: 900 | N130: 3342.6 | O130: Less than 20 k
A131: 370650116051001 | B131: U - 2dd 2 | C131: 37.1138799 | D131: -116.0870022 | E131: 4255.01 | F131: 3190 | G131: est2438 | H131: est | I131: 2438 | J131: 9999 | K131: 9999 | L131: Arnica-Yellow | M131: 1015 | N131: 3240 | O131: Less than 20 k
A132: 370702116050301 | B132: U - 2dd 3 | C132: 37.1170855 | D132: -116.0850244 | E132: 4260.71 | F132: 3345.7 | G132: est2430 | H132: est | I132: 2430 | J132: 9999 | K132: 9999 | L132: Arnica-Violet | M132: 865 | N132: 3395.7 | O132: Less than 20 k
A133: 370656116044801 | B133: U - 2dd 4 | C133: 37.11553277 | D133: -116.0810048 | E133: 4249.01 | F133: 2726 | G133: est2431 | H133: est | I133: 2431 | J133: 9999 | K133: 9999 | L133: Can-Red | M133: 1310 | N133: 2939 | O133: 20 to 200 kt
A134: 370800116051201 | B134: U - 2de | C134: 37.13317158 | D134: -116.0875302 | E134: 4322.6 | F134: 2752.6 | G134: est2455 | H134: est | I134: 2455 | J134: 9999 | K134: 9999 | L134: Coffer | M134: 1525 | N134: 2797.6 | O134: Less than 100
A135: 370822116051501 | B135: U - 2df | C135: 37.139466 | D135: -116.0883137 | E135: 4353.8 | F135: 2488.8 | G135: est2448 | H135: est | I135: 2448 | J135: 4276 | K135: 2489 | L135: Hutch | M135: 1798 | N135: 2555.8 | O135: 20 to 200 kt
A136: 370745116045901 | B136: U - 2dg | C136: 37.1290827 | D136: -116.0838689 | E136: 4301.74 | F136: 2031.7 | G136: est2490 | H136: est | I136: 2490 | J136: 9999 | K136: 9999 | L136: Carpetbag | M136: 2170 | N136: 2131.7 | O136: 220 kt
A137: 370647116045101 | B137: U - 2dh 2 | C137: 37.1129994 | D137: -116.0816909 | E137: 4241.01 | F137: 3315 | G137: est2429 | H137: est | I137: 2429 | J137: 9999 | K137: 9999 | L137: Sappho | M137: 649 | N137: 3592 | O137: Less than 20 k
A138: 370645116050401 | B138: U - 2dh 3 | C138: 37.11244384 | D138: -116.085366 | E138: 4246.95 | F138: 3296 | G138: est2431 | H138: est | I138: 2431 | J138: 9999 | K138: 9999 | L138: Kara | M138: 850 | N138: 3397 | O138: Less than 20 k
A139: 370728116051301 | B139: U - 2di | C139: 37.1244327 | D139: -116.0878496 | E139: 4287.51 | F139: 3087.5 | G139: est2444 | H139: est | I139: 2444 | J139: 9999 | K139: 9999 | L139: Chantilly | M139: 1085 | N139: 3202.5 | O139: Less than 20 k
A140: 370824116050003 | B140: U - 2dj (Flax-Backup) | C140: 37.1399077 | D140: -116.0841246 | E140: 4341 | F140: 1970 | G140: est2447 | H140: est | I140: 2447 | J140: 9999 | K140: 9999 | L140: Flax-Backup | M140: 1460 | N140: 2881 | O140: Less than 20 k
A141: 370824116050001 | B141: U - 2dj (Flax-Source) | C141: 37.1399077 | D141: -116.0841246 | E141: 4340.81 | F141: 1969.8 | G141: est2447 | H141: est | I141: 2447 | J141: 9999 | K141: 9999 | L141: Flax-Source | M141: 2258 | N141: 2082.8 | O141: Less than 20 k
A142: 370824116050002 | B142: U - 2dj (Flax-Test) | C142: 37.1399077 | D142: -116.0841246 | E142: 4340.78 | F142: 1969.8 | G142: est2447 | H142: est | I142: 2447 | J142: 9999 | K142: 9999 | L142: Flax-Test | M142: 1430 | N142: 2910.8 | O142: 20 to 200 kt
A143: 370714116051601 | B143: U - 2dk | C143: 37.12051047 | D143: -116.0887663 | E143: 4278.71 | F143: 3078.7 | G143: est2431 | H143: est | I143: 2431 | J143: 9999 | K143: 9999 | L143: Zinnia | M143: 1059 | N143: 3219.7 | O143: Less than 20 k
A144: 370726116052201 | B144: U - 2dL | C144: 37.1238993 | D144: -116.0904247 | E144: 4290.98 | F144: 3154 | G144: est2437 | H144: est | I144: 2437 | J144: 9999 | K144: 9999 | L144: Chaenactis | M144: 1086 | N144: 3205 | O144: Less than 20 k
A145: 370719116050201 | B145: U - 2dm | C145: 37.12189106 | D145: -116.0847133 | E145: 4274.71 | F145: 3144.7 | G145: est2439 | H145: est | I145: 2439 | J145: 9999 | K145: 9999 | L145: Longchamps | M145: 1071 | N145: 3203.7 | O145: Less than 20 k
A146: 370657116050701 | B146: U - 2dn | C146: 37.11584105 | D146: -116.0861994 | E146: 4258.11 | F146: 3498.1 | G146: est2433 | H146: est | I146: 2433 | J146: 9999 | K146: 9999 | L146: Merida | M146: 670 | N146: 3588.1 | O146: Less than 20 k
A147: 370702116051301 | B147: U - 2do | C147: 37.11722159 | D147: -116.0879023 | E147: 4267.81 | F147: 3142.8 | G147: est2436 | H147: est | I147: 2436 | J147: 9999 | K147: 9999 | L147: Gazook | M147: 1070 | N147: 3197.8 | O147: Less than 20 k
A148: 370717116050901 | B148: U - 2dp | C148: 37.1213216 | D148: -116.0866023 | E148: 4275.62 | F148: 3175.6 | G148: est2431 | H148: est | I148: 2431 | J148: 9999 | K148: 9999 | L148: Delphinium | M148: 970 | N148: 3305.6 | O148: 13.8 kt
A149: 370642116043801 | B149: U - 2dq | C149: 37.11174947 | D149: -116.0780018 | E149: 4232.01 | F149: 2907 | G149: est2473 | H149: est | I149: 2473 | J149: 9999 | K149: 9999 | L149: Satz | M149: 1033 | N149: 3199 | O149: Less than 20 k
A150: 370802116050301 | B150: U - 2dr | C150: 37.13396327 | D150: -116.0851162 | E150: 4313.2 | F150: 2293.2 | G150: 2455 | I150: 2455 | J150: 4196 | K150: 2313 | L150: Cabrillo | M150: 1970 | N150: 2343.2 | O150: 20 to 200 kt
A151: 370653116042901 | B151: U - 2ds | C151: 37.1147578 | D151: -116.075574 | E151: 4235.51 | F151: 2992.5 | G151: est2473 | H151: est | I151: 2473 | J151: 9999 | K151: 9999 | L151: Grove | M151: 1031 | N151: 3204.5 | O151: Less than 20 k
A152: 370700116045601 | B152: U - 2dt | C152: 37.11671886 | D152: -116.0831076 | E152: 4257.15 | F152: 2424.1 | G152: est2428 | H152: est | I152: 2428 | J152: 9999 | K152: 9999 | L152: Tanya | M152: 1250 | N152: 3007.1 | O152: Less than 20 k
A153: 370642116042501 | B153: U - 2du | C153: 37.11173284 | D153: -116.0745683 | E153: 4225.31 | F153: 3500.3 | G153: est2511 | H153: est | I153: 2511 | J153: 9999 | K153: 9999 | L153: Alviso | M153: 600 | N153: 3625.3 | O153: Less than 20 k
A154: 370728116044401 | B154: U - 2dv | C154: 37.12444667 | D154: -116.079752 | E154: 4273.49 | F154: 2673.5 | G154: est2477 | H154: est | I154: 2477 | J154: 9999 | K154: 9999 | L154: Fallon | M154: 1530 | N154: 2743.5 | O154: 20 to 200 kt
A155: 370709116050602 | B155: U - 2dw (Crestlake-Briar) | C155: 37.11920494 | D155: -116.0860022 | E155: 4268.74 | F155: 3018.7 | G155: est2433 | H155: est | I155: 2433 | J155: 9999 | K155: 9999 | L155: Crestlake-Briar | M155: 1226 | N155: 3042.7 | O155: Less than 20 k
A156: 370709116050601 | B156: U - 2dw (Crestlake-Tansan) | C156: 37.11920494 | D156: -116.0860022 | E156: 4268.74 | F156: 3018.7 | G156: est2433 | H156: est | I156: 2433 | J156: 9999 | K156: 9999 | L156: Crestlake-Tansan | M156: 891 | N156: 3377.7 | O156: Less than 20 k
A157: 370656116051501 | B157: U - 2dy | C157: 37.11563825 | D157: -116.0882606 | E157: 4262.6 | F157: 2862.6 | G157: est2439 | H157: est | I157: 2439 | J157: 9999 | K157: 9999 | L157: Edam | M157: 1350 | N157: 2912.6 | O157: 20 to 200 kt
A158: 370730116045501 | B158: U - 2dz | C158: 37.1249605 | D158: -116.082866 | E158: 4272.7 | F158: 2372.7 | G158: est2489 | H158: est | I158: 2489 | J158: 9999 | K158: 9999 | L158: Banon | M158: 1761 | N158: 2511.7 | O158: 20 to 150 kt
A159: 370924116041501 | B159: U - 2e | C159: 37.15663007 | D159: -116.0718353 | E159: 4351.71 | F159: 3536.7 | G159: est2424 | H159: est | I159: 2424 | J159: 9999 | K159: 9999 | L159: Cumberland | M159: 745 | N159: 3606.7 | O159: Low
A160: 370941116042301 | B160: U - 2ea | C160: 37.16134949 | D160: -116.0739244 | E160: 4373.81 | F160: 3621.8 | G160: est2421 | H160: est | I160: 2421 | J160: 9999 | K160: 9999 | L160: Seafoam | M160: 650 | N160: 3723.8 | O160: Less than 20 k
A161: 370936116043501 | B161: U - 2eb | C161: 37.15992445 | D161: -116.0772828 | E161: 4386.51 | F161: 3486.5 | G161: est2427 | H161: est | I161: 2427 | J161: 9999 | K161: 9999 | L161: Portrero | M161: 692 | N161: 3694.5 | O161: Less than 20 k
A162: 370804116034401 | B162: U - 2ef | C162: 37.1345135 | D162: -116.0631458 | E162: 4260.11 | F162: 3160.1 | G162: est2450 | H162: est | I162: 2450 | J162: 9999 | K162: 9999 | L162: Gouda | M162: 656 | N162: 3604.1 | O162: Less than 20 k
A163: 370814116040001 | B163: U - 2eg | C163: 37.13715235 | D163: -116.0674488 | E163: 4284.11 | F163: 3308.1 | G163: est2450 | H163: est | I163: 2450 | J163: 9999 | K163: 9999 | L163: Rivoli | M163: 656 | N163: 3628.1 | O163: Less than 20 k
A164: 370900116045601 | B164: U - 2eh | C164: 37.14982717 | D164: -116.083133 | E164: 4367.7 | F164: 2117.7 | G164: lt2470 | H164: lt | I164: 2470 | J164: 4251 | K164: 2118 | L164: Liptauer | M164: 1368 | N164: 2999.7 | O164: 20 to 150 kt
A165: 370904116040301 | B165: U - 2ei | C165: 37.1511162 | D165: -116.0684296 | E165: 4327.4 | F165: 2227.4 | G165: 2429 | I165: 2429 | J165: 4210 | K165: 2227 | L165: Coulommiers | M165: 1740 | N165: 2587.4 | O165: 20 to 150 kt
A166: 370740116034201 | B166: U - 2ek | C166: 37.1276024 | D166: -116.0624402 | E166: 4237.01 | F166: 1739 | G166: est2465 | H166: est | I166: 2465 | J166: 9999 | K166: 9999 | L166: Chiberta | M166: 2350 | N166: 1887 | O166: 20 to 200 kt
A167: 370713116034401 | B167: U - 2eL | C167: 37.1201857 | D167: -116.0631512 | E167: 4219.78 | F167: 1819.8 | G167: est2514 | H167: est | I167: 2514 | J167: 9999 | K167: 9999 | L167: Marsilly | M167: 2260 | N167: 1959.8 | O167: 20 to 150 kt
A168: 370815116034701 | B168: U - 2em | C168: 37.1373246 | D168: -116.0639431 | E168: 4272.97 | F168: 3548 | G168: est2450 | H168: est | I168: 2450 | J168: 9999 | K168: 9999 | L168: Azul | M168: 672 | N168: 3601 | O168: Less than 20 k
A169: 370725116035001 | B169: U - 2en | C169: 37.12363016 | D169: -116.0647013 | E169: 4225.49 | F169: 1773.5 | G169: est2473 | H169: est | I169: 2473 | J169: 9999 | K169: 9999 | L169: Reblochon | M169: 2160 | N169: 2065.5 | O169: 20 to 150 kt
A170: 370907116041901 | B170: U - 2eo | C170: 37.1519634 | D170: -116.0727075 | E170: 4343.6 | F170: 2512.6 | G170: est2427 | H170: est | I170: 2427 | J170: 9999 | K170: 9999 | L170: Kloster | M170: 1760 | N170: 2583.6 | O170: 20 to 150 kt
A171: 370716116040001 | B171: U - 2ep | C171: 37.1211718 | D171: -116.067457 | E171: 4220.8 | F171: 2437.8 | G171: est2477 | H171: est | I171: 2477 | J171: 9999 | K171: 9999 | L171: Nessel | M171: 1522 | N171: 2698.8 | O171: 20 to 150 kt
A172: 370657116035201 | B172: U - 2eq | C172: 37.11581349 | D172: -116.0654374 | E172: 4203.38 | F172: 2497.4 | G172: est2535 | H172: est | I172: 2535 | J172: 9999 | K172: 9999 | L172: Riola | M172: 1391 | N172: 2812.4 | O172: 1.30 kt
A173: 370938116035901 | B173: U - 2er | C173: 37.160369 | D173: -116.0673963 | E173: 4342.42 | F173: 3242.4 | G173: est2416 | H173: est | I173: 2416 | J173: 9999 | K173: 9999 | L173: Islay | M173: 965 | N173: 3377.4 | O173: Less than 20 k
A174: 370854116041501 | B174: U - 2es | C174: 37.1483856 | D174: -116.0717102 | E174: 4332.09 | F174: 2632.1 | G174: est2443 | H174: est | I174: 2443 | J174: 9999 | K174: 9999 | L174: Akavi | M174: 1621 | N174: 2711.1 | O174: 20 to 150 kt
A175: 370946116034801 | B175: U - 2et | C175: 37.16276905 | D175: -116.0642184 | E175: 4331.59 | F175: 2931.6 | G175: est2413 | H175: est | I175: 2413 | J175: 9999 | K175: 9999 | L175: Cheedam | M175: 1125 | N175: 3206.6 | O175: Less than 20 k
A176: 370927116052101 | B176: U - 2eu | C176: 37.15756875 | D176: -116.0901 | E176: 4440.48 | F176: 3024.5 | G176: est2449 | H176: est | I176: 2449 | J176: 9999 | K176: 9999 | L176: Danablu | M176: 1050 | N176: 3390.5 | O176: Less than 20 k
A177: 370847116050301 | B177: U - 2ev | C177: 37.14639104 | D177: -116.084933 | E177: 4365.68 | F177: 2957.7 | G177: est2450 | H177: est | I177: 2450 | J177: 9999 | K177: 9999 | L177: Agrini | M177: 1050 | N177: 3315.7 | O177: Less than 20 k
A178: 370717116032001 | B178: U - 2ew (Branco) | C178: 37.121308 | D178: -116.0564537 | E178: 4209.01 | F178: 2709 | G178: est2504 | H178: est | I178: 2504 | J178: 9999 | K178: 9999 | L178: Branco | M178: 960 | N178: 3249 | O178: Less than 20 k
A179: 370717116032002 | B179: U - 2ew (Branco-Herkimer) | C179: 37.121308 | D179: -116.0564537 | E179: 4209.01 | F179: 2709 | G179: est2504 | H179: est | I179: 2504 | J179: 9999 | K179: 9999 | L179: Branco-Herkimer | M179: 1400 | N179: 2809 | O179: Less than 20 k
A180: 370826116041901 | B180: U - 2ex | C180: 37.1403995 | D180: -116.072938 | E180: 4311.3 | F180: 2302.3 | G180: 2469 | I180: 2469 | J180: 4193 | K180: 2302 | L180: Romano | M180: 1690 | N180: 2621.3 | O180: 20 to 150 kt
A181: 370958116042001 | B181: U - 2ey (Nightingale) | C181: 37.1661106 | D181: -116.073116 | E181: 4384.09 | F181: 3470.1 | G181: est2416 | H181: est | I181: 2416 | J181: 9999 | K181: 9999 | L181: Nightingale | M181: 780 | N181: 3604.1 | O181: Less than 150
A182: 370958116042002 | B182: U - 2ey (Rhyolite) | C182: 37.1661106 | D182: -116.073116 | E182: 4384.09 | F182: 3470.1 | G182: est2416 | H182: est | I182: 2416 | J182: 9999 | K182: 9999 | L182: Rhyolite | M182: 680 | N182: 3704.1 | O182: Less than 150
A183: 370653116040601 | B183: U - 2ez | C183: 37.114644 | D183: -116.0692653 | E183: 4217 | F183: 2917 | G183: lt2920 | H183: lt | I183: 2920 | J183: 4217 | K183: 2917 | M183: 9999
A184: 370917116042401 | B184: U - 2f | C184: 37.15473005 | D184: -116.0742299 | E184: 4360.31 | F184: 3848.3 | G184: est2428 | H184: est | I184: 2428 | J184: 9999 | K184: 9999 | L184: Narraguagus | M184: 493 | N184: 3867.3 | O184: Low
A185: 370809116051001 | B185: U - 2fa | C185: 37.13582159 | D185: -116.0868997 | E185: 4321.78 | F185: 1921.8 | G185: est2451 | H185: est | I185: 2451 | J185: 9999 | K185: 9999 | L185: Farallones | M185: 2189 | N185: 2132.8 | O185: 20 to 150 kt
A186: 370737116050201 | B186: U - 2fb | C186: 37.1268216 | D186: -116.0847439 | E186: 4271.33 | F186: 2411.3 | G186: est2504 | H186: est | I186: 2504 | J186: 9999 | K186: 9999 | L186: Quargel | M186: 1778 | N186: 2493.3 | O186: 20 to 150 kt
A187: 370835116051501 | B187: U - 2fc | C187: 37.143116 | D187: -116.0883887 | E187: 4364.21 | F187: 2490.2 | G187: est2449 | H187: est | I187: 2449 | J187: 9999 | K187: 9999 | L187: Fajy | M187: 1760 | N187: 2604.2 | O187: 20 to 150 kt
A188: 370736116051901 | B188: U - 2fd | C188: 37.12649934 | D188: -116.0893775 | E188: 4287.4 | F188: 2761.4 | G188: est2446 | H188: est | I188: 2446 | J188: 9999 | K188: 9999 | L188: Tarko | M188: 1209 | N188: 3078.4 | O188: Less than 20 k
A189: 370844116052101 | B189: U - 2fe | C189: 37.14559376 | D189: -116.0900888 | E189: 4383.3 | F189: 2908.3 | G189: est2448 | H189: est | I189: 2448 | J189: 9999 | K189: 9999 | L189: Crowdie | M189: 1280 | N189: 3103.3 | O189: Less than 20 k
A190: 370708116052001 | B190: U - 2ff | C190: 37.11894935 | D190: -116.0897774 | E190: 4275.39 | F190: 3075.4 | G190: est2434 | H190: est | I190: 2434 | J190: 9999 | K190: 9999 | L190: Laban | M190: 1070 | N190: 3205.4 | O190: Less than 20 k
A191: 370750116052001 | B191: U - 2fg | C191: 37.13048545 | D191: -116.0898609 | E191: 4301 | F191: 2696 | G191: est2500 | H191: est | I191: 2500 | J191: 4301 | K191: 2696 | M191: 9999
A192: 370716116052201 | B192: U - 2fh | C192: 37.12098545 | D192: -116.0904136 | E192: 4279 | F192: 2879 | G192: lt2888 | H192: lt | I192: 2888 | J192: 4279 | K192: 2879 | M192: 9999
A193: 370915116043601 | B193: U - 2g | C193: 37.1540439 | D193: -116.0774994 | E193: 4373.29 | F193: 3613.3 | G193: est2438 | H193: est | I193: 2438 | J193: 9999 | K193: 9999 | L193: Satsop | M193: 738 | N193: 3635.3 | O193: Low
A194: 370834116041601 | B194: U - 2gaS | C194: 37.1426995 | D194: -116.071988 | E194: 4311.58 | F194: 2514.6 | G194: est2456 | H194: est | I194: 2456 | J194: 9999 | K194: 9999 | L194: Cornucopia | M194: 1248 | N194: 3063.6 | O194: Less than 20 k
A195: 370730116033701 | B195: U - 2gb | C195: 37.12498575 | D195: -116.0612595 | E195: 4218.54 | F195: 2338.5 | G195: est2485 | H195: est | I195: 2485 | J195: 9999 | K195: 9999 | L195: Panamint | M195: 1575 | N195: 2643.5 | O195: Less than 20 k
A196: 370925116051401 | B196: U - 2gc | C196: 37.1569021 | D196: -116.0882194 | E196: 4428 | F196: 3178 | G196: est2500 | H196: est | I196: 2500 | J196: 4428 | K196: 3178 | M196: 9999
A197: 370958116035301 | B197: U - 2gd | C197: 37.1660718 | D197: -116.0655657 | E197: 4345 | F197: 3495 | G197: est2500 | H197: est | I197: 2500 | J197: 4345 | K197: 3495 | M197: 9999
A198: 370831116044301 | B198: U - 2ge | C198: 37.14184944 | D198: -116.0795716 | E198: 4334.97 | F198: 2415 | G198: est2456 | H198: est | I198: 2456 | J198: 9999 | K198: 9999 | L198: Borate | M198: 1780 | N198: 2555 | O198: 20 to 150 kt
A199: 370728116042001 | B199: U - 2gf | C199: 37.1243856 | D199: -116.0729962 | E199: 4248.8 | F199: 2438.8 | G199: 2474 | I199: 2474 | J199: 4131 | K199: 2439 | L199: Schellbourne | M199: 1519 | N199: 2729.8 | O199: Less than 150
A200: 370834116040101 | B200: U - 2gg | C200: 37.1427912 | D200: -116.0678072 | E200: 4289.4 | F200: 2468.4 | G200: lt2516 | H200: lt | I200: 2516 | J200: 4172 | K200: 2468 | L200: Ingot | M200: 1640 | N200: 2649.4 | O200: 20 to 150 kt
... 743 more rows

Sheet CONTROL
K1: Row now = | L1: =MATCH(SiteNOW,pickWELL,0) -> 1 | Q1: =GeoCOLUMN!H7&CHAR(10)&GeoCOLUMN!H8&TEXT(GeoCOLUMN!J8,"#,##0")&CHAR(10)&GeoCOLUMN!H9&TEXT(GeoCOLUMN!J9,"#,##0")&CHAR(10)&GeoCOLUMN!H10&TEXT(GeoCOLUMN!J10,"#,##0")&CHAR(10)&GeoCOLUMN!H11&TEXT(GeoCOLUMN!J11,"#,##0") -> Altitude, ft LSD:4,216 Water Lev:2,491 Open Top:2,574 Open Bot:2,039
A2: Native HSU units: | B2: m | N2: Native WELL units: | O2: ft
A3: Convert: | B3: =OFFSET($B$4,MATCH(depthUNIT,pickLEN,0),0)/OFFSET($B$4,MATCH($B$2,pickLEN,0),0) -> 3.280839895 | C3: =depthUNIT&" / "&B2 -> ft / m | E3: HSUTop | F3: ROW | H3: HSUTopInWell | I3: Altitude | K3: Lat83 | L3: Long83 | N3: Convert: | O3: =OFFSET($B$4,MATCH(depthUNIT,pickLEN,0),0)/OFFSET($B$4,MATCH($O$2,pickLEN,0),0) -> 1 | P3: =depthUNIT&" / "&O2 -> ft / ft
E4: AA | H4: AA3 | I4: 1285.009754 | K4: =OFFSET(ConsWL!$A$1,$L$1,MATCH(K3,ConsWL!$B$1:$O$1,0)) -> 37.12523018 | L4: =OFFSET(ConsWL!$A$1,$L$1,MATCH(L3,ConsWL!$B$1:$O$1,0)) -> -116.0627679
A5: m | B5: 1 | E5: AA3 | H5: TMUVTA | I5: 858.9
A6: ft | B6: =1/0.3048 -> 3.280839895 | E6: PCUT | H6: TMWTA | I6: 797.9 | L6: x | M6: Y | N6: BAR-MINUS | O6: BAR-PLUS
A7: mi | B7: =B6/5280 -> 0.0006213711922 | E7: AA2 | H7: TMLVTA | I7: 753.7 | K7: LSAltFt | L7: 0.1 | M7: =OFFSET(ConsWL!$A$1,$L$1,MATCH(K7,ConsWL!$B$1:$O$1,0))*depCONwell -> 4215.86 | N7: =L7 -> 0.1 | O7: 0
A8: km | B8: =B5/1000 -> 0.001 | E8: BLFA | H8: LTCU | I8: 700.4 | K8: HoleBotAltFt | L8: =L7 -> 0.1 | M8: =OFFSET(ConsWL!$A$1,$L$1,MATCH(K8,ConsWL!$B$1:$O$1,0))*depCONwell -> 1615.9 | N8: =N7 -> 0.1 | O8: =O7 -> 0
E9: AA1 | H9: OSBCU | I9: 475.2987537 | L9: =L8 -> 0.1
E10: TMUVTA | H10: ATCU | I10: 342.1677537 | K10: OpenTopFt | L10: =1-L7 -> 0.9 | M10: =OFFSET(ConsWL!$A$1,$L$1,MATCH(K10,ConsWL!$B$1:$O$1,0))*depCONwell -> 2574 | N10: =-N7 -> -0.1 | O10: =-O7 -> 0
E11: TMWTA | H11: LCA | I11: 332.5417537 | K11: OpenBotFt | L11: =L10 -> 0.9 | M11: =OFFSET(ConsWL!$A$1,$L$1,MATCH(K11,ConsWL!$B$1:$O$1,0))*depCONwell -> 2039 | N11: =-N8 -> -0.1 | O11: =-O8 -> 0
E12: TMLVTA | H12: LCCU | I12: -2038.352246 | L12: =L11 -> 0.9
E13: UTCU | H13: No Data | I13: -5000 | K13: WLaltAveFtNoQ | L13: 0.5 | M13: =OFFSET(ConsWL!$A$1,$L$1,MATCH(K13,ConsWL!$B$1:$O$1,0))*depCONwell -> 2491 | N13: =L13-N7 -> 0.4 | O13: =N13 -> 0.4
E14: TSA
E15: LVTA | K15: Qualifier | L15: =OFFSET(ConsWL!$A$1,$L$1,MATCH(K15,ConsWL!$B$1:$O$1,0)) -> 
E16: BRA
E17: BRCU
E18: LTCU
E19: TUBA
E20: PRETBG_1
E21: OSBCU
E22: RVA | K22: DetNameNV209 | L22: x | M22: =OFFSET(ConsWL!$A$1,$L$1,MATCH(K22,ConsWL!$B$1:$O$1,0)) -> 
E23: LTCU1 | K23: DBAltFt | L23: 0.5 | M23: =OFFSET(ConsWL!$A$1,$L$1,MATCH(K23,ConsWL!$B$1:$O$1,0))*depCONwell -> 0
E24: ATCU
E25: MGCU
E26: UCA
E27: UCCU1
E28: UCCU
E29: LCA3
E30: LCA3
E31: LCCU2
E32: LCA
E33: LCA
E34: LCCU
E35: No Data
